Workbook

Sheet URG
A1: ENCUESTA DE SATISFACCION DE LOS USUARIOS TABULACION DE DATOS
A6: PERIODO: OCTUBRE 2020 SERVICIO: HOSPITALIZACION
C9: 1 | D9: 2 | E9: 3 | F9: 4 | G9: 5 | H9: 6 | I9: 7 | J9: 8 | K9: 9 | L9: 10 | M9: 11 | N9: 12 | O9: 13 | P9: 14 | Q9: 15 | R9: 16 | S9: 17 | T9: 18 | U9: 19 | V9: 20 | W9: 21 | X9: 22 | Y9: 23 | Z9: 24 | AA9: 25 | AB9: 26 | AC9: 27 | AD9: 28 | AE9: 29 | AF9: 30 | AG9: 31 | AH9: 32 | AI9: 33 | AJ9: 34 | AK9: 35 | AL9: 36 | AM9: 37 | AN9: 38 | AO9: 39 | AP9: 40 | AQ9: 41 | AR9: TOTAL
A11: FIABILIDAD | B11: La atención recibida por el personal administrativo es: (Vigilantes, Orientadores, Secretarias, Facturadores,) | C11: 100 | D11: 100 | E11: 100 | F11: 100 | G11: 100 | H11: 100 | I11: 75 | J11: 75 | K11: 75 | L11: 75 | M11: 75 | N11: 75 | O11: 75 | P11: 75 | Q11: 75 | R11: 100 | S11: 100 | T11: 100 | U11: 75 | V11: 75 | W11: 100 | X11: 100 | Y11: 75 | Z11: 75 | AA11: 75 | AB11: 100 | AC11: 75 | AD11: 100 | AE11: 100 | AF11: 75 | AG11: 100 | AH11: 75 | AI11: 100 | AJ11: 100 | AK11: 75 | AL11: 100 | AM11: 100 | AN11: 100 | AO11: 100 | AP11: 100 | AQ11: 100 | AR11: =AVERAGE(C11:AQ11) -> 89
B12: La atención recibida por el personal asistencial es:(Médicos, enfermeras, terapeutas, nutrición, aseo) | C12: 100 | D12: 100 | E12: 100 | F12: 100 | G12: 100 | H12: 100 | I12: 75 | J12: 75 | K12: 75 | L12: 75 | M12: 75 | N12: 75 | O12: 75 | P12: 75 | Q12: 75 | R12: 100 | S12: 100 | T12: 100 | U12: 75 | V12: 75 | W12: 75 | X12: 100 | Y12: 75 | Z12: 75 | AA12: 75 | AB12: 100 | AC12: 75 | AD12: 100 | AE12: 75 | AF12: 75 | AG12: 100 | AH12: 75 | AI12: 100 | AJ12: 100 | AK12: 75 | AL12: 100 | AM12: 100 | AN12: 100 | AO12: 100 | AP12: 100 | AQ12: 100 | AR12: 88
B13: La oportunidad en la atención recibida es: (al ingreso, valoración, aplicación de medicamentos, terapias, curaciones, etc.) | C13: 100 | D13: 100 | E13: 100 | F13: 100 | G13: 100 | H13: 75 | I13: 75 | J13: 75 | K13: 75 | L13: 75 | M13: 75 | N13: 75 | O13: 75 | P13: 75 | Q13: 75 | R13: 75 | S13: 100 | T13: 100 | U13: 75 | V13: 75 | W13: 100 | X13: 75 | Y13: 75 | Z13: 75 | AA13: 75 | AB13: 75 | AC13: 75 | AD13: 100 | AE13: 75 | AF13: 75 | AG13: 100 | AH13: 75 | AI13: 100 | AJ13: 100 | AK13: 75 | AL13: 100 | AM13: 100 | AN13: 100 | AO13: 100 | AP13: 100 | AQ13: 100 | AR13: 86
B14: La claridad de la información que le brindó el personal es: (requisitos para la atención, horarios de atención, de visitas, restricciones) | C14: 100 | D14: 100 | E14: 100 | F14: 100 | G14: 100 | H14: 75 | I14: 75 | J14: 75 | K14: 75 | L14: 75 | M14: 75 | N14: 75 | O14: 75 | P14: 75 | Q14: 75 | R14: 75 | S14: 100 | T14: 75 | U14: 75 | V14: 75 | W14: 100 | X14: 75 | Y14: 75 | Z14: 75 | AA14: 75 | AB14: 75 | AC14: 75 | AD14: 100 | AE14: 75 | AF14: 75 | AG14: 100 | AH14: 75 | AI14: 100 | AJ14: 100 | AK14: 75 | AL14: 100 | AM14: 100 | AN14: 100 | AO14: 100 | AP14: 100 | AQ14: 100 | AR14: 85
B15: La claridad de la información brindada por el médico tratante sobre su enfermedad, riesgos y tratamiento a realizar es: | C15: 100 | D15: 100 | E15: 100 | F15: 100 | G15: 100 | H15: 100 | I15: 75 | J15: 75 | K15: 75 | L15: 75 | M15: 75 | N15: 75 | O15: 75 | P15: 75 | Q15: 75 | R15: 75 | S15: 100 | T15: 100 | U15: 75 | V15: 75 | W15: 75 | X15: 75 | Y15: 75 | Z15: 75 | AA15: 75 | AB15: 75 | AC15: 75 | AD15: 100 | AE15: 75 | AF15: 75 | AG15: 100 | AH15: 75 | AI15: 100 | AJ15: 100 | AK15: 75 | AL15: 100 | AM15: 100 | AN15: 100 | AO15: 100 | AP15: 100 | AQ15: 100 | AR15: 86
B16: La presentación del personal que lo atiende es: (Uso de escarapela de identificación, utiliza elementos de protección personal: guantes, tapabocas, bata, gorro, etc.) | C16: 100 | D16: 100 | E16: 100 | F16: 100 | G16: 100 | H16: 75 | I16: 75 | J16: 75 | K16: 75 | L16: 75 | M16: 75 | N16: 75 | O16: 75 | P16: 75 | Q16: 75 | R16: 100 | S16: 100 | T16: 75 | U16: 75 | V16: 75 | W16: 75 | X16: 75 | Y16: 75 | Z16: 75 | AA16: 75 | AB16: 75 | AC16: 75 | AD16: 100 | AE16: 75 | AF16: 75 | AG16: 100 | AH16: 75 | AI16: 100 | AJ16: 100 | AK16: 75 | AL16: 100 | AM16: 100 | AN16: 100 | AO16: 100 | AP16: 100 | AQ16: 100 | AR16: 85
C17: =AVERAGE(C11:C16) -> 100 | D17: =AVERAGE(D11:D16) -> 100 | E17: 100 | F17: 100 | G17: 100 | H17: 87.5 | I17: 75 | J17: 75 | K17: 75 | L17: 75 | M17: 75 | N17: 75 | O17: 75 | P17: 75 | Q17: 75 | R17: 87.5 | S17: 100 | T17: 91.66666667 | U17: 75 | V17: 75 | W17: 87.5 | X17: 83.33333333 | Y17: =AVERAGE(Y11:Y16) -> 75 | Z17: =AVERAGE(Z11:Z16) -> 75 | AA17: 75 | AB17: 83.33333333 | AC17: 75 | AD17: 100 | AE17: 79.16666667 | AF17: 75 | AG17: 100 | AH17: 75 | AI17: 100 | AJ17: 100 | AK17: 75 | AL17: 100 | AM17: 100 | AN17: 100 | AO17: 100 | AP17: 100 | AQ17: 100 | AR17: =AVERAGE(AR11:AR16) -> 87
A18: ELEMENTOS TANGIBLES | B18: La comodidad y el aseo de las instalaciones: habitaciones , consultorios, baños, equipos médicos, la ropa de cama, y mobiliario es: | C18: 100 | D18: 100 | E18: 100 | F18: 100 | G18: 100 | H18: 75 | I18: 75 | J18: 75 | K18: 75 | L18: 75 | M18: 75 | N18: 75 | O18: 75 | P18: 75 | Q18: 75 | R18: 100 | S18: 100 | T18: 100 | U18: 75 | V18: 75 | W18: 100 | X18: 75 | Y18: 75 | Z18: 75 | AA18: 75 | AB18: 75 | AC18: 75 | AD18: 100 | AE18: 75 | AF18: 75 | AG18: 75 | AH18: 75 | AI18: 75 | AJ18: 75 | AK18: 75 | AL18: 100 | AM18: 100 | AN18: 100 | AO18: 100 | AP18: 100 | AQ18: 100 | AR18: =AVERAGE(C18:AQ18) -> 85
B19: La alimentación brindada al paciente de acuerdo a su necesidad es: | C19: 100 | D19: 100 | E19: 100 | F19: 100 | G19: 100 | H19: 75 | I19: 75 | J19: 75 | K19: 75 | L19: 75 | M19: 75 | N19: 75 | O19: 75 | P19: 75 | Q19: 75 | S19: 75 | T19: 100 | W19: 100 | X19: 100 | Z19: 75 | AA19: 75 | AB19: 75 | AC19: 75 | AG19: 100 | AI19: 75 | AJ19: 100 | AL19: 100 | AM19: 100 | AN19: 100 | AO19: 100 | AP19: 100 | AQ19: 100 | AR19: =AVERAGE(C19:AQ19) -> 88
B20: El silencio percibido en el servicio es: | C20: 100 | D20: 100 | E20: 100 | F20: 100 | G20: 100 | H20: 75 | I20: 75 | J20: 75 | K20: 75 | L20: 75 | M20: 75 | N20: 75 | O20: 75 | P20: 75 | Q20: 75 | R20: 100 | S20: 100 | T20: 100 | U20: 75 | V20: 75 | W20: 100 | X20: 75 | Y20: 50 | Z20: 50 | AA20: 75 | AB20: 75 | AC20: 75 | AD20: 100 | AE20: 75 | AF20: 75 | AG20: 100 | AH20: 75 | AI20: 75 | AJ20: 100 | AK20: 75 | AL20: 100 | AM20: 100 | AN20: 100 | AO20: 100 | AP20: 100 | AQ20: 100 | AR20: =AVERAGE(C20:AQ20) -> 85
C21: =AVERAGE(C18:C20) -> 100 | D21: 100 | E21: 100 | F21: 100 | G21: 100 | H21: 75 | I21: 75 | J21: 75 | K21: 75 | L21: 75 | M21: 75 | N21: 75 | O21: 75 | P21: 75 | Q21: 75 | R21: 100 | S21: 91.66666667 | T21: 100 | U21: 75 | V21: 75 | W21: 100 | X21: 83.33333333 | Y21: 62.5 | Z21: 66.66666667 | AA21: 75 | AB21: 75 | AC21: =AVERAGE(AC18:AC20) -> 75 | AD21: =AVERAGE(AD18:AD20) -> 100 | AE21: =AVERAGE(AE18:AE20) -> 75 | AF21: 75 | AG21: 91.66666667 | AH21: 75 | AI21: 75 | AJ21: 91.66666667 | AK21: 75 | AL21: 100 | AM21: 100 | AN21: 100 | AO21: 100 | AP21: 100 | AQ21: 100 | AR21: 86
A22: EMPATIA | B22: El trato brindado por el personal en su atención es: (una atención con respeto, amabilidad, saludo e interés por servirle) | C22: 100 | D22: 100 | E22: 100 | F22: 100 | G22: 100 | H22: 75 | I22: 75 | J22: 75 | K22: 75 | L22: 75 | M22: 75 | N22: 75 | O22: 75 | P22: 75 | Q22: 75 | R22: 100 | S22: 75 | T22: 100 | U22: 75 | V22: 75 | W22: 75 | X22: 75 | Y22: 75 | Z22: 75 | AA22: 75 | AB22: 75 | AC22: 100 | AD22: 100 | AE22: 75 | AF22: 75 | AG22: 100 | AH22: 75 | AI22: 100 | AJ22: 100 | AK22: 50 | AL22: 100 | AM22: 100 | AN22: 100 | AO22: 100 | AP22: 100 | AQ22: 100 | AR22: =AVERAGE(C22:AQ22) -> 85
B23: La privacidad durante su atención es: (Cierre de puertas y cortinas, sin presencia de personas ajenas) | C23: 100 | D23: 100 | E23: 100 | F23: 100 | G23: 100 | H23: 75 | I23: 75 | J23: 75 | K23: 75 | L23: 75 | M23: 75 | N23: 75 | O23: 75 | P23: 75 | Q23: 75 | R23: 75 | S23: 75 | T23: 100 | U23: 75 | V23: 75 | W23: 75 | X23: 75 | Y23: 75 | Z23: 75 | AA23: 75 | AB23: 100 | AC23: 100 | AD23: 100 | AE23: 50 | AF23: 75 | AG23: 100 | AH23: 75 | AI23: 100 | AJ23: 100 | AK23: 50 | AL23: 100 | AM23: 100 | AN23: 100 | AO23: 100 | AP23: 100 | AQ23: 100 | AR23: =AVERAGE(C23:AQ23) -> 85
B24: La claridad de la información sobre los Derecho y Deberes que usted tiene como usuario es: | C24: 100 | D24: 100 | E24: 100 | F24: 100 | G24: 100 | H24: 75 | I24: 75 | J24: 75 | K24: 75 | L24: 75 | M24: 75 | N24: 75 | O24: 75 | P24: 75 | Q24: 75 | R24: 75 | S24: 50 | T24: 100 | U24: 75 | V24: 75 | W24: 100 | X24: 75 | Y24: 75 | Z24: 75 | AA24: 75 | AB24: 100 | AC24: 75 | AD24: 75 | AE24: 75 | AF24: 75 | AG24: 100 | AH24: 75 | AI24: 100 | AJ24: 100 | AK24: 75 | AL24: 100 | AM24: 100 | AN24: 100 | AO24: 100 | AP24: 100 | AQ24: 100 | AR24: =AVERAGE(C24:AQ24) -> 85
B25: La agilidad del personal para ayudarle a resolver sus inquietudes es: (Respuesta al llamado del timbre, solicitud de información, aseo y mantenimiento). | C25: 100 | D25: 100 | E25: 100 | F25: 100 | G25: 100 | H25: 75 | I25: 75 | J25: 75 | K25: 75 | L25: 75 | M25: 75 | N25: 75 | O25: 75 | P25: 75 | Q25: 75 | R25: 100 | S25: 75 | T25: 100 | U25: 75 | V25: 75 | W25: 100 | X25: 75 | Y25: 75 | Z25: 75 | AA25: 75 | AB25: 75 | AC25: 75 | AD25: 100 | AE25: 75 | AF25: 75 | AG25: 75 | AH25: 75 | AI25: 100 | AJ25: 100 | AK25: 75 | AL25: 100 | AM25: 100 | AN25: 100 | AO25: 100 | AP25: 100 | AQ25: 100 | AR25: =AVERAGE(C25:AQ25) -> 85
C26: =AVERAGE(C22:C25) -> 100 | D26: =AVERAGE(D22:D25) -> 100 | E26: =AVERAGE(E22:E25) -> 100 | F26: 100 | G26: 100 | H26: 75 | I26: 75 | J26: 75 | K26: 75 | L26: 75 | M26: 75 | N26: 75 | O26: 75 | P26: 75 | Q26: 75 | R26: 87.5 | S26: 68.75 | T26: 100 | U26: 75 | V26: 75 | W26: 87.5 | X26: 75 | Y26: =AVERAGE(Y22:Y25) -> 75 | Z26: =AVERAGE(Z22:Z25) -> 75 | AA26: =AVERAGE(AA22:AA25) -> 75 | AB26: 87.5 | AC26: 87.5 | AD26: 93.75 | AE26: 68.75 | AF26: 75 | AG26: 93.75 | AH26: 75 | AI26: 100 | AJ26: 100 | AK26: 62.5 | AL26: 100 | AM26: 100 | AN26: 100 | AO26: 100 | AP26: 100 | AQ26: 100 | AR26: =AVERAGE(AR22:AR25) -> 85
A27: SEGURIDAD | B27: El cuidado frente a la identificación del paciente es: (En cada atención, verifican su nombre, apellido y documento de identidad) | C27: 100 | D27: 100 | E27: 100 | F27: 100 | G27: 100 | H27: 75 | I27: 75 | J27: 75 | K27: 75 | L27: 75 | M27: 75 | N27: 75 | O27: 75 | P27: 75 | Q27: 75 | R27: 100 | S27: 75 | T27: 75 | U27: 75 | V27: 75 | W27: 75 | X27: 75 | Y27: 75 | Z27: 75 | AA27: 75 | AB27: 75 | AC27: 100 | AD27: 100 | AE27: 75 | AF27: 75 | AG27: 75 | AH27: 75 | AI27: 100 | AJ27: 100 | AK27: 75 | AL27: 100 | AM27: 100 | AN27: 100 | AO27: 100 | AP27: 100 | AQ27: 100 | AR27: =AVERAGE(C27:AQ27) -> 85
B28: La claridad de la información para presentar una Petición, Queja, Reclamo o Sugerencia es: | C28: 100 | D28: 100 | E28: 100 | F28: 100 | G28: 100 | H28: 100 | I28: 75 | J28: 75 | K28: 75 | L28: 75 | M28: 75 | N28: 75 | O28: 75 | P28: 75 | Q28: 75 | R28: 100 | S28: 100 | T28: 100 | U28: 75 | V28: 75 | W28: 50 | X28: 75 | Y28: 75 | Z28: 75 | AA28: 75 | AB28: 50 | AC28: 75 | AD28: 75 | AE28: 75 | AF28: 75 | AG28: 100 | AH28: 75 | AI28: 100 | AJ28: 75 | AK28: 50 | AL28: 100 | AM28: 100 | AN28: 100 | AO28: 100 | AP28: 100 | AQ28: 100 | AR28: =AVERAGE(C28:AQ28) -> 84
B29: La claridad sobre las instrucciones para la disposición correcta de la basura es: | C29: 100 | D29: 100 | E29: 100 | F29: 100 | G29: 100 | H29: 75 | I29: 75 | J29: 75 | K29: 75 | L29: 75 | M29: 75 | N29: 75 | O29: 75 | P29: 75 | Q29: 75 | R29: 75 | S29: 75 | T29: 100 | U29: 75 | V29: 75 | W29: 100 | X29: 75 | Y29: 75 | Z29: 75 | AA29: 75 | AB29: 75 | AC29: 100 | AD29: 100 | AE29: 75 | AF29: 50 | AG29: 100 | AH29: 75 | AI29: 75 | AJ29: 100 | AK29: 75 | AL29: 100 | AM29: 100 | AN29: 100 | AO29: 100 | AP29: 100 | AQ29: 100 | AR29: =AVERAGE(C29:AQ29) -> 85
B30: La claridad sobre la importancia de lavarse muy bien las manos y cómo hacerlo es: | C30: 100 | D30: 100 | E30: 100 | F30: 100 | G30: 100 | H30: 75 | I30: 75 | J30: 75 | K30: 75 | L30: 75 | M30: 75 | N30: 75 | O30: 75 | P30: 75 | Q30: 75 | R30: 50 | S30: 75 | T30: 75 | U30: 75 | V30: 75 | W30: 100 | X30: 75 | Y30: 75 | Z30: 75 | AA30: 75 | AB30: 75 | AC30: 100 | AD30: 100 | AE30: 75 | AF30: 75 | AG30: 100 | AH30: 75 | AI30: 75 | AJ30: 100 | AK30: 75 | AL30: 100 | AM30: 100 | AN30: 100 | AO30: 100 | AP30: 100 | AQ30: 100 | AR30: =AVERAGE(C30:AQ30) -> 84
B31: La claridad sobre qué hacer, cómo salir y a dónde dirigirse en caso de una emergencia es: (terremoto, atentado, incendio, fuga de gas, etc.) | C31: 100 | D31: 100 | E31: 100 | F31: 100 | G31: 75 | H31: 50 | I31: 75 | J31: 75 | K31: 75 | L31: 75 | M31: 75 | N31: 75 | O31: 75 | P31: 75 | Q31: 75 | R31: 100 | S31: 75 | T31: 100 | U31: 75 | V31: 75 | W31: 75 | X31: 50 | Y31: 75 | Z31: 75 | AA31: 75 | AB31: 75 | AC31: 75 | AD31: 100 | AE31: 75 | AF31: 75 | AG31: 100 | AH31: 75 | AI31: 100 | AJ31: 75 | AK31: 100 | AL31: 100 | AM31: 100 | AN31: 100 | AO31: 100 | AP31: 100 | AQ31: 100 | AR31: =AVERAGE(C31:AQ31) -> 84
C32: =AVERAGE(C27:C31) -> 100 | D32: =AVERAGE(D27:D31) -> 100 | E32: 100 | F32: 100 | G32: 95 | H32: 75 | I32: 75 | J32: 75 | K32: 75 | L32: 75 | M32: 75 | N32: 75 | O32: 75 | P32: 75 | Q32: 75 | R32: 85 | S32: 80 | T32: 90 | U32: 75 | V32: 75 | W32: 80 | X32: 70 | Y32: =AVERAGE(Y27:Y31) -> 75 | Z32: =AVERAGE(Z27:Z31) -> 75 | AA32: 75 | AB32: 70 | AC32: 90 | AD32: 95 | AE32: 75 | AF32: 70 | AG32: 95 | AH32: 75 | AI32: 90 | AJ32: 90 | AK32: 75 | AL32: 100 | AM32: 100 | AN32: 100 | AO32: 100 | AP32: 100 | AQ32: 100 | AR32: =AVERAGE(AR27:AR31) -> 84
B33: TOTAL | C33: =(C17+C21+C26+C32)/4 -> 100 | D33: 100 | E33: 100 | F33: 100 | G33: 98.75 | H33: 78.125 | I33: 75 | J33: 75 | K33: 75 | L33: 75 | M33: 75 | N33: 75 | O33: 75 | P33: 75 | Q33: 75 | R33: 90 | S33: 85.10416667 | T33: 95.41666667 | U33: 75 | V33: 75 | W33: 88.75 | X33: 77.91666667 | Y33: 71.875 | Z33: 72.91666667 | AA33: 75 | AB33: 78.95833333 | AC33: 81.875 | AD33: 97.1875 | AE33: 74.47916667 | AF33: 73.75 | AG33: 95.10416667 | AH33: 75 | AI33: =(AI17+AI21+AI26+AI32)/4 -> 91.25 | AJ33: 95.41666667 | AK33: 71.875 | AL33: 100 | AM33: 100 | AN33: 100 | AO33: 100 | AP33: 100 | AQ33: 100 | AR33: 85.37
B34: VALORES:
B35: MUY BUENA= 100 BUENA = 75 REGULAR = 50 MALA = 25 MUY MALA = 0
A36: EN TERMINOS GENERALES, LA ATENCIÓN QUE USTED RECIBIO FUE: MUY BUENA __27__ BUENA _11___ REGULAR __3__ MALA ____ MUY MALA ____ NO RESPONDE ___
A40: RECOMENDARIA A FAMILIARES O AMIGOS EL SERVICIO EN ESTA INSTITUCIÓN? DEFINITIVAMENTE SI __26__ PROBABLEMENTE SI _10___ DEFINITIVAMENTE NO ____ PROBABLEMENTE NO ____ NO RESPONDE __5__

Sheet QUIROF
A1: ENCUESTA DE SATISFACCION DE LOS USUARIOS TABULACION DE DATOS
A6: PERIODO: OCTUBRE 2020 SERVICIO: QUIROFANO
C8: 1 | D8: 2 | E8: 3 | F8: 4 | G8: 5 | H8: 6 | I8: 7 | J8: 8 | K8: 9 | L8: 10 | M8: 11 | N8: 12 | O8: 13 | P8: 14 | Q8: 15 | R8: 16 | S8: 17 | T8: 18 | U8: 19 | V8: 20 | W8: 21 | X8: 22 | Y8: 23 | Z8: 24 | AA8: 25 | AB8: 26 | AC8: 27 | AD8: 28 | AE8: 29 | AF8: 30 | AG8: 31 | AH8: 32 | AI8: 33 | AJ8: 34 | AK8: 35 | AL8: 36 | AM8: 37 | AN8: TOTAL
A10: FIABILIDAD | B10: La atención recibida por el personal administrativo es: (Vigilantes, Orientadores, Secretarias, Facturadores,) | C10: 100 | D10: 100 | E10: 100 | F10: 100 | G10: 100 | H10: 100 | I10: 100 | J10: 100 | K10: 100 | L10: 100 | M10: 100 | N10: 100 | O10: 100 | P10: 100 | Q10: 100 | R10: 100 | S10: 100 | T10: 100 | U10: 100 | V10: 100 | W10: 75 | X10: 75 | Y10: 75 | Z10: 75 | AA10: 75 | AB10: 75 | AC10: 75 | AD10: 75 | AE10: 75 | AF10: 75 | AG10: 75 | AH10: 75 | AI10: 100 | AJ10: 75 | AK10: 75 | AL10: 100 | AM10: 75 | AN10: =AVERAGE(C10:AM10) -> 90
B11: La atención recibida por el personal asistencial es:(Médicos, enfermeras, terapeutas, nutrición, aseo) | C11: 100 | D11: 100 | E11: 100 | F11: 100 | G11: 100 | H11: 100 | I11: 100 | J11: 100 | K11: 100 | L11: 100 | M11: 100 | N11: 100 | O11: 100 | P11: 100 | Q11: 100 | R11: 100 | S11: 100 | T11: 100 | U11: 100 | V11: 100 | W11: 75 | X11: 75 | Y11: 75 | Z11: 75 | AA11: 75 | AB11: 75 | AC11: 75 | AD11: 75 | AE11: 75 | AF11: 75 | AG11: 75 | AH11: 75 | AI11: 75 | AJ11: 75 | AK11: 75 | AL11: 100 | AM11: 75 | AN11: 89
B12: La oportunidad en la atención recibida es: (al ingreso, valoración, aplicación de medicamentos, terapias, curaciones, etc.) | C12: 100 | D12: 100 | E12: 100 | F12: 100 | G12: 100 | H12: 100 | I12: 100 | J12: 100 | K12: 100 | L12: 100 | M12: 100 | N12: 100 | O12: 100 | P12: 100 | Q12: 100 | R12: 100 | S12: 100 | T12: 100 | U12: 100 | V12: 100 | W12: 75 | X12: 75 | Y12: 75 | Z12: 75 | AA12: 75 | AB12: 75 | AC12: 75 | AD12: 75 | AE12: 75 | AF12: 75 | AG12: 75 | AH12: 75 | AI12: 50 | AJ12: 50 | AK12: 50 | AL12: 100 | AM12: 75 | AN12: 87
B13: La claridad de la información que le brindó el personal es: (requisitos para la atención, horarios de atención, de visitas, restricciones) | C13: 100 | D13: 100 | E13: 100 | F13: 100 | G13: 100 | H13: 100 | I13: 100 | J13: 100 | K13: 100 | L13: 100 | M13: 100 | N13: 100 | O13: 100 | P13: 100 | Q13: 100 | R13: 100 | S13: 100 | T13: 100 | U13: 100 | V13: 100 | W13: 75 | X13: 75 | Y13: 75 | Z13: 75 | AA13: 75 | AB13: 75 | AC13: 75 | AD13: 75 | AE13: 75 | AF13: 75 | AG13: 75 | AH13: 75 | AI13: 100 | AJ13: 50 | AK13: 75 | AL13: 100 | AM13: 75 | AN13: 89
B14: La claridad de la información brindada por el médico tratante sobre su enfermedad, riesgos y tratamiento a realizar es: | C14: 100 | D14: 100 | E14: 100 | F14: 100 | G14: 100 | H14: 100 | I14: 100 | J14: 100 | K14: 100 | L14: 100 | M14: 100 | N14: 100 | O14: 100 | P14: 100 | Q14: 100 | R14: 100 | S14: 100 | T14: 100 | U14: 100 | V14: 100 | W14: 75 | X14: 75 | Y14: 75 | Z14: 75 | AA14: 75 | AB14: 75 | AC14: 75 | AD14: 75 | AE14: 75 | AF14: 75 | AG14: 75 | AH14: 75 | AI14: 75 | AJ14: 50 | AK14: 75 | AL14: 75 | AM14: 75 | AN14: 88
B15: La presentación del personal que lo atiende es: (Uso de escarapela de identificación, utiliza elementos de protección personal: guantes, tapabocas, bata, gorro, etc.) | C15: 100 | D15: 100 | E15: 100 | F15: 100 | G15: 100 | H15: 100 | I15: 100 | J15: 100 | K15: 100 | L15: 100 | M15: 100 | N15: 100 | O15: 100 | P15: 100 | Q15: 100 | R15: 100 | S15: 100 | T15: 100 | U15: 100 | V15: 100 | W15: 75 | X15: 75 | Y15: 75 | Z15: 75 | AA15: 75 | AB15: 75 | AC15: 75 | AD15: 75 | AE15: 75 | AF15: 75 | AG15: 75 | AH15: 75 | AI15: 75 | AJ15: 75 | AK15: 75 | AL15: 100 | AM15: 75 | AN15: 89
C16: =AVERAGE(C10:C15) -> 100 | D16: =AVERAGE(D10:D15) -> 100 | E16: 100 | F16: 100 | G16: 100 | H16: 100 | I16: 100 | J16: 100 | K16: 100 | L16: 100 | M16: 100 | N16: 100 | O16: 100 | P16: 100 | Q16: 100 | R16: 100 | S16: 100 | T16: 100 | U16: =AVERAGE(U10:U15) -> 100 | V16: 100 | W16: 75 | X16: 75 | Y16: 75 | Z16: 75 | AA16: 75 | AB16: 75 | AC16: 75 | AD16: 75 | AE16: 75 | AF16: 75 | AG16: 75 | AH16: 75 | AI16: 79.16666667 | AJ16: 62.5 | AK16: 70.83333333 | AL16: 95.83333333 | AM16: 75 | AN16: 89
A17: ELEMENTOS TANGIBLES | B17: La comodidad y el aseo de las instalaciones: habitaciones , consultorios, baños, equipos médicos, la ropa de cama, y mobiliario es: | C17: 100 | D17: 100 | E17: 100 | F17: 100 | G17: 100 | H17: 100 | I17: 100 | J17: 100 | K17: 100 | L17: 75 | M17: 50 | N17: 100 | O17: 75 | P17: 100 | Q17: 100 | R17: 100 | S17: 50 | T17: 100 | U17: 100 | V17: 100 | W17: 75 | X17: 75 | Y17: 75 | Z17: 75 | AA17: 75 | AB17: 75 | AC17: 75 | AD17: 75 | AE17: 75 | AF17: 75 | AG17: 75 | AH17: 75 | AI17: 50 | AJ17: 50 | AK17: 50 | AL17: 75 | AM17: 75 | AN17: 82
B18: La alimentación brindada al paciente de acuerdo a su necesidad es: | C18: 100 | D18: 100 | E18: 100 | F18: 100 | G18: 100 | I18: 100 | J18: 100 | K18: 100 | L18: 75 | M18: 75 | N18: 100 | O18: 75 | R18: 100 | S18: 100 | T18: 100 | U18: 100 | V18: 75 | W18: 75 | X18: 75 | Y18: 75 | Z18: 75 | AA18: 75 | AB18: 75 | AC18: 75 | AD18: 75 | AE18: 75 | AF18: 75 | AG18: 75 | AH18: 75 | AI18: 50 | AJ18: 50 | AK18: 75 | AL18: 75 | AM18: 75 | AN18: 83
B19: El silencio percibido en el servicio es: | C19: 100 | D19: 100 | E19: 100 | F19: 100 | G19: 100 | H19: 100 | I19: 100 | J19: 100 | K19: 100 | L19: 75 | M19: 50 | N19: 100 | O19: 100 | P19: 100 | Q19: 100 | R19: 100 | S19: 75 | T19: 100 | U19: 100 | V19: 75 | W19: 75 | X19: 75 | Y19: 75 | Z19: 75 | AA19: 75 | AB19: 75 | AC19: 75 | AD19: 75 | AE19: 75 | AF19: 75 | AG19: 75 | AH19: 75 | AI19: 50 | AJ19: 50 | AK19: 75 | AL19: 75 | AM19: 75 | AN19: 84
C20: =AVERAGE(C17:C19) -> 100 | D20: =AVERAGE(D17:D19) -> 100 | E20: 100 | F20: 100 | G20: 100 | H20: 100 | I20: 100 | J20: 100 | K20: 100 | L20: 75 | M20: 58.33333333 | N20: 100 | O20: 83.33333333 | P20: 100 | Q20: 100 | R20: 100 | S20: 75 | T20: 100 | U20: =AVERAGE(U17:U19) -> 100 | V20: 83.33333333 | W20: 75 | X20: 75 | Y20: 75 | Z20: 75 | AA20: 75 | AB20: 75 | AC20: 75 | AD20: 75 | AE20: 75 | AF20: 75 | AG20: 75 | AH20: 75 | AI20: 50 | AJ20: 50 | AK20: 66.66666667 | AL20: 75 | AM20: 75 | AN20: 84
A21: EMPATIA | B21: El trato brindado por el personal en su atención es: (una atención con respeto, amabilidad, saludo e interés por servirle) | C21: 100 | D21: 100 | E21: 100 | F21: 100 | G21: 100 | H21: 100 | I21: 100 | J21: 100 | K21: 100 | L21: 100 | M21: 100 | N21: 100 | O21: 100 | P21: 100 | Q21: 100 | R21: 100 | S21: 100 | T21: 100 | U21: 100 | V21: 100 | W21: 75 | X21: 75 | Y21: 75 | Z21: 75 | AA21: 75 | AB21: 75 | AC21: 75 | AD21: 75 | AE21: 75 | AF21: 75 | AG21: 75 | AH21: 75 | AI21: 75 | AJ21: 75 | AK21: 75 | AL21: 100 | AM21: 75 | AN21: 89
B22: La privacidad durante su atención es: (Cierre de puertas y cortinas, sin presencia de personas ajenas) | C22: 100 | D22: 100 | E22: 100 | F22: 100 | G22: 100 | H22: 100 | I22: 100 | J22: 100 | K22: 100 | L22: 100 | M22: 100 | N22: 100 | O22: 100 | P22: 100 | Q22: 100 | R22: 100 | S22: 100 | T22: 100 | U22: 100 | V22: 75 | W22: 75 | X22: 75 | Y22: 75 | Z22: 75 | AA22: 75 | AB22: 75 | AC22: 75 | AD22: 75 | AE22: 75 | AF22: 75 | AG22: 75 | AH22: 75 | AI22: 50 | AJ22: 50 | AK22: 50 | AL22: 75 | AM22: 75 | AN22: 86
B23: La claridad de la información sobre los Derecho y Deberes que usted tiene como usuario es: | C23: 100 | D23: 100 | E23: 100 | F23: 100 | G23: 100 | H23: 100 | I23: 100 | J23: 100 | K23: 100 | L23: 75 | M23: 100 | N23: 50 | O23: 100 | P23: 50 | Q23: 50 | R23: 100 | S23: 100 | T23: 100 | U23: 50 | V23: 100 | W23: 75 | X23: 75 | Y23: 75 | Z23: 75 | AA23: 75 | AB23: 75 | AC23: 75 | AD23: 75 | AE23: 75 | AF23: 75 | AG23: 75 | AH23: 75 | AI23: 50 | AJ23: 50 | AK23: 50 | AL23: 75 | AM23: 75 | AN23: 80
B24: La agilidad del personal para ayudarle a resolver sus inquietudes es: (Respuesta al llamado del timbre, solicitud de información, aseo y mantenimiento). | C24: 100 | D24: 100 | E24: 100 | F24: 100 | G24: 100 | H24: 100 | I24: 100 | J24: 100 | K24: 100 | L24: 100 | M24: 100 | N24: 100 | O24: 75 | P24: 100 | Q24: 100 | R24: 100 | S24: 100 | T24: 100 | U24: 100 | V24: 100 | W24: 75 | X24: 75 | Y24: 75 | Z24: 75 | AA24: 75 | AB24: 75 | AC24: 75 | AD24: 75 | AE24: 75 | AF24: 75 | AG24: 75 | AH24: 75 | AI24: 75 | AJ24: 50 | AK24: 75 | AL24: 100 | AM24: 75 | AN24: 88
C25: =AVERAGE(C21:C24) -> 100 | D25: =AVERAGE(D21:D24) -> 100 | E25: 100 | F25: 100 | G25: 100 | H25: 100 | I25: 100 | J25: 100 | K25: 100 | L25: 93.75 | M25: 100 | N25: 87.5 | O25: 93.75 | P25: 87.5 | Q25: 87.5 | R25: 100 | S25: 100 | T25: 100 | U25: =AVERAGE(U21:U24) -> 87.5 | V25: 93.75 | W25: 75 | X25: 75 | Y25: 75 | Z25: 75 | AA25: 75 | AB25: 75 | AC25: 75 | AD25: 75 | AE25: 75 | AF25: 75 | AG25: 75 | AH25: 75 | AI25: 62.5 | AJ25: 56.25 | AK25: 62.5 | AL25: 87.5 | AM25: 75 | AN25: 86
A26: SEGURIDAD | B26: El cuidado frente a la identificación del paciente es: (En cada atención, verifican su nombre, apellido y documento de identidad) | C26: 100 | D26: 100 | E26: 100 | F26: 100 | G26: 100 | H26: 100 | I26: 100 | J26: 100 | K26: 100 | L26: 100 | M26: 100 | N26: 100 | O26: 100 | P26: 100 | Q26: 100 | R26: 100 | S26: 100 | T26: 100 | U26: 100 | V26: 100 | W26: 75 | X26: 75 | Y26: 75 | Z26: 75 | AA26: 75 | AB26: 75 | AC26: 75 | AD26: 75 | AE26: 75 | AF26: 75 | AG26: 75 | AH26: 75 | AI26: 100 | AJ26: 75 | AK26: 75 | AL26: 100 | AM26: 75 | AN26: 90
B27: La claridad de la información para presentar una Petición, Queja, Reclamo o Sugerencia es: | C27: 100 | D27: 100 | E27: 100 | F27: 100 | G27: 100 | H27: 100 | I27: 75 | J27: 100 | K27: 100 | L27: 75 | M27: 50 | N27: 100 | O27: 75 | P27: 50 | Q27: 50 | R27: 75 | S27: 50 | T27: 75 | U27: 50 | V27: 100 | W27: 75 | X27: 75 | Y27: 75 | Z27: 75 | AA27: 75 | AB27: 75 | AC27: 75 | AD27: 75 | AE27: 75 | AF27: 75 | AG27: 75 | AH27: 75 | AI27: 50 | AJ27: 50 | AK27: 50 | AL27: 75 | AM27: 75 | AN27: 76
B28: La claridad sobre las instrucciones para la disposición correcta de la basura es: | C28: 100 | D28: 100 | E28: 100 | F28: 100 | G28: 100 | H28: 100 | I28: 100 | J28: 100 | K28: 100 | L28: 100 | M28: 100 | N28: 100 | O28: 100 | P28: 100 | Q28: 100 | R28: 100 | S28: 100 | T28: 100 | U28: 100 | V28: 100 | W28: 75 | X28: 75 | Y28: 75 | Z28: 75 | AA28: 75 | AB28: 75 | AC28: 75 | AD28: 75 | AE28: 75 | AF28: 75 | AG28: 75 | AH28: 75 | AI28: 100 | AJ28: 75 | AK28: 75 | AL28: 100 | AM28: 75 | AN28: 90
B29: La claridad sobre la importancia de lavarse muy bien las manos y cómo hacerlo es: | C29: 100 | D29: 100 | E29: 100 | F29: 100 | G29: 100 | H29: 100 | I29: 100 | J29: 100 | K29: 100 | L29: 100 | M29: 100 | N29: 100 | O29: 100 | P29: 100 | Q29: 100 | R29: 100 | S29: 100 | T29: 100 | U29: 100 | V29: 100 | W29: 75 | X29: 75 | Y29: 75 | Z29: 75 | AA29: 75 | AB29: 75 | AC29: 75 | AD29: 75 | AE29: 75 | AF29: 75 | AG29: 75 | AH29: 75 | AI29: 100 | AJ29: 75 | AK29: 75 | AL29: 100 | AM29: 75 | AN29: 90
B30: La claridad sobre qué hacer, cómo salir y a dónde dirigirse en caso de una emergencia es: (terremoto, atentado, incendio, fuga de gas, etc.) | C30: 100 | D30: 100 | E30: 100 | F30: 100 | G30: 100 | H30: 100 | I30: 75 | J30: 100 | K30: 100 | L30: 100 | M30: 50 | N30: 50 | O30: 75 | P30: 50 | Q30: 50 | R30: 50 | S30: 75 | T30: 75 | U30: 50 | V30: 100 | W30: 75 | X30: 75 | Y30: 75 | Z30: 75 | AA30: 75 | AB30: 75 | AC30: 75 | AD30: 75 | AE30: 75 | AF30: 75 | AG30: 75 | AH30: 75 | AI30: 75 | AJ30: 50 | AK30: 50 | AL30: 75 | AM30: 75 | AN30: 76
C31: =AVERAGE(C26:C30) -> 100 | D31: =AVERAGE(D26:D30) -> 100 | E31: 100 | F31: 100 | G31: 100 | H31: 100 | I31: 90 | J31: 100 | K31: 100 | L31: 95 | M31: 80 | N31: 90 | O31: 90 | P31: 80 | Q31: 80 | R31: 85 | S31: 85 | T31: 90 | U31: =AVERAGE(U26:U30) -> 80 | V31: 100 | W31: 75 | X31: 75 | Y31: 75 | Z31: 75 | AA31: 75 | AB31: 75 | AC31: 75 | AD31: 75 | AE31: 75 | AF31: 75 | AG31: 75 | AH31: 75 | AI31: 85 | AJ31: 65 | AK31: 65 | AL31: 90 | AM31: 75 | AN31: 84
B32: TOTAL | C32: =(C16+C20+C25+C31)/4 -> 100 | D32: =(D16+D20+D25+D31)/4 -> 100 | E32: 100 | F32: 100 | G32: 100 | H32: 100 | I32: 97.5 | J32: 100 | K32: 100 | L32: 90.9375 | M32: 84.58333333 | N32: 94.375 | O32: 91.77083333 | P32: 91.875 | Q32: 91.875 | R32: 96.25 | S32: 90 | T32: 97.5 | U32: =(U16+U20+U25+U31)/4 -> 91.875 | V32: 94.27083333 | W32: 75 | X32: 75 | Y32: 75 | Z32: 75 | AA32: 75 | AB32: 75 | AC32: 75 | AD32: 75 | AE32: 75 | AF32: 75 | AG32: 75 | AH32: 75 | AI32: 69.16666667 | AJ32: 58.4375 | AK32: 66.25 | AL32: 87.08333333 | AM32: 75 | AN32: 86
B33: VALORES:
B34: MUY BUENA= 100 BUENA = 75 REGULAR = 50 MALA = 25 MUY MALA = 0
A35: EN TERMINOS GENERALES, LA ATENCIÓN QUE USTED RECIBIO FUE: MUY BUENA _26___ BUENA _11___ REGULAR ____ MALA ____ MUY MALA ____ NO RESPONDE ____
A39: RECOMENDARIA A FAMILIARES O AMIGOS EL SERVICIO EN ESTA INSTITUCIÓN? DEFINITIVAMENTE SI _31__ PROBABLEMENTE SI _3___ DEFINITIVAMENTE NO ____ PROBABLEMENTE NO ____ NO RESPONDE _3__

Sheet HOSPIT
A1: ENCUESTA DE SATISFACCION DE LOS USUARIOS TABULACION DE DATOS
A6: PERIODO: OCTUBRE 2020 SERVICIO: HOSPITALIZACION
A9: DIMENSIONES | C9: 1 | D9: 2 | E9: 3 | F9: 4 | G9: 5 | H9: 6 | I9: 7 | J9: 8 | K9: 9 | L9: 10 | M9: 11 | N9: 12 | O9: 13 | P9: 14 | Q9: 15 | R9: 16 | S9: 17 | T9: 18 | U9: 19 | V9: 20 | W9: 21 | X9: 22 | Y9: 23 | Z9: 24 | AA9: 25 | AB9: 26 | AC9: 27 | AD9: 28 | AE9: 29 | AF9: 30 | AG9: 31 | AH9: 32 | AI9: 33 | AJ9: 34 | AK9: 35 | AL9: 36 | AM9: 37 | AN9: 38 | AO9: 39 | AP9: 40 | AQ9: 41 | AR9: 42 | AS9: 43 | AT9: 44 | AU9: 45 | AV9: 46 | AW9: 47 | AX9: 48 | AY9: 49 | AZ9: 50 | BA9: 51 | BB9: 52 | BC9: 53 | BD9: 54 | BE9: 55 | BF9: 56 | BG9: 57 | BH9: 58 | BI9: 59 | BJ9: 60 | BK9: 61 | BL9: TOTAL
A11: FIABILIDAD | B11: La atención recibida por el personal administrativo es: (Vigilantes, Orientadores, Secretarias, Facturadores,) | C11: 100 | D11: 100 | E11: 100 | F11: 100 | G11: 100 | H11: 100 | I11: 100 | J11: 100 | K11: 100 | L11: 100 | M11: 100 | N11: 100 | O11: 100 | P11: 100 | Q11: 100 | R11: 100 | S11: 100 | T11: 100 | U11: 100 | V11: 100 | W11: 100 | X11: 100 | Y11: 100 | Z11: 100 | AA11: 100 | AB11: 100 | AC11: 100 | AD11: 100 | AE11: 75 | AF11: 75 | AG11: 75 | AH11: 75 | AI11: 75 | AJ11: 75 | AK11: 75 | AL11: 75 | AM11: 75 | AN11: 75 | AO11: 75 | AP11: 75 | AQ11: 75 | AR11: 75 | AS11: 75 | AT11: 75 | AU11: 75 | AV11: 75 | AW11: 75 | AX11: 75 | AY11: 75 | AZ11: 75 | BA11: 75 | BB11: 75 | BC11: 75 | BD11: 75 | BE11: 100 | BF11: 75 | BG11: 75 | BH11: 75 | BI11: 100 | BJ11: 75 | BK11: 75 | BL11: =AVERAGE(C11:BK11) -> 87
B12: La atención recibida por el personal asistencial es:(Médicos, enfermeras, terapeutas, nutrición, aseo) | C12: 100 | D12: 100 | E12: 100 | F12: 100 | G12: 100 | H12: 100 | I12: 100 | J12: 100 | K12: 100 | L12: 100 | M12: 100 | N12: 100 | O12: 100 | P12: 100 | Q12: 100 | R12: 100 | S12: 100 | T12: 100 | U12: 100 | V12: 100 | W12: 100 | X12: 100 | Y12: 100 | Z12: 100 | AA12: 100 | AB12: 100 | AC12: 100 | AD12: 100 | AE12: 75 | AF12: 75 | AG12: 75 | AH12: 75 | AI12: 75 | AJ12: 75 | AK12: 75 | AL12: 75 | AM12: 75 | AN12: 75 | AO12: 75 | AP12: 75 | AQ12: 75 | AR12: 75 | AS12: 75 | AT12: 75 | AU12: 75 | AV12: 75 | AW12: 75 | AX12: 75 | AY12: 75 | AZ12: 75 | BA12: 75 | BB12: 75 | BC12: 75 | BD12: 75 | BE12: 100 | BF12: 75 | BG12: 75 | BH12: 75 | BI12: 100 | BJ12: 75 | BK12: 75 | BL12: 87
B13: La oportunidad en la atención recibida es: (al ingreso, valoración, aplicación de medicamentos, terapias, curaciones, etc.) | C13: 100 | D13: 100 | E13: 100 | F13: 100 | G13: 100 | H13: 100 | I13: 100 | J13: 100 | K13: 100 | L13: 100 | M13: 100 | N13: 100 | O13: 100 | P13: 100 | Q13: 100 | R13: 100 | S13: 100 | T13: 100 | U13: 100 | V13: 100 | W13: 100 | X13: 100 | Y13: 100 | Z13: 100 | AA13: 100 | AB13: 75 | AC13: 100 | AD13: 100 | AE13: 75 | AF13: 75 | AG13: 75 | AH13: 75 | AI13: 75 | AJ13: 75 | AK13: 75 | AL13: 75 | AM13: 75 | AN13: 75 | AO13: 75 | AP13: 75 | AQ13: 75 | AR13: 75 | AS13: 75 | AT13: 75 | AU13: 75 | AV13: 75 | AW13: 75 | AX13: 75 | AY13: 75 | AZ13: 75 | BA13: 75 | BB13: 75 | BC13: 75 | BD13: 75 | BE13: 75 | BF13: 75 | BG13: 75 | BH13: 75 | BI13: 50 | BJ13: 75 | BK13: 50 | BL13: 85
B14: La claridad de la información que le brindó el personal es: (requisitos para la atención, horarios de atención, de visitas, restricciones) | C14: 100 | D14: 100 | E14: 100 | F14: 100 | G14: 100 | H14: 100 | I14: 100 | J14: 100 | K14: 100 | L14: 100 | M14: 100 | N14: 100 | O14: 100 | P14: 100 | Q14: 100 | R14: 100 | S14: 100 | T14: 100 | U14: 100 | V14: 100 | W14: 100 | X14: 100 | Y14: 100 | Z14: 100 | AA14: 100 | AB14: 100 | AC14: 100 | AD14: 100 | AE14: 75 | AF14: 75 | AG14: 75 | AH14: 75 | AI14: 75 | AJ14: 75 | AK14: 75 | AL14: 75 | AM14: 75 | AN14: 75 | AO14: 75 | AP14: 75 | AQ14: 75 | AR14: 75 | AS14: 75 | AT14: 75 | AU14: 75 | AV14: 75 | AW14: 75 | AX14: 75 | AY14: 75 | AZ14: 75 | BA14: 75 | BB14: 75 | BC14: 75 | BD14: 75 | BE14: 75 | BF14: 75 | BG14: 75 | BH14: 75 | BI14: 75 | BJ14: 50 | BK14: 75 | BL14: 86
B15: La claridad de la información brindada por el médico tratante sobre su enfermedad, riesgos y tratamiento a realizar es: | C15: 100 | D15: 100 | E15: 100 | F15: 100 | G15: 100 | H15: 100 | I15: 100 | J15: 100 | K15: 100 | L15: 100 | M15: 100 | N15: 100 | O15: 100 | P15: 100 | Q15: 100 | R15: 100 | S15: 100 | T15: 100 | U15: 100 | V15: 100 | W15: 100 | X15: 100 | Y15: 100 | Z15: 100 | AA15: 100 | AB15: 100 | AC15: 100 | AD15: 100 | AE15: 75 | AF15: 75 | AG15: 75 | AH15: 75 | AI15: 75 | AJ15: 75 | AK15: 75 | AL15: 75 | AM15: 75 | AN15: 75 | AO15: 75 | AP15: 75 | AQ15: 75 | AR15: 75 | AS15: 75 | AT15: 75 | AU15: 75 | AV15: 75 | AW15: 75 | AX15: 75 | AY15: 75 | AZ15: 75 | BA15: 75 | BB15: 75 | BC15: 75 | BD15: 75 | BE15: 75 | BF15: 75 | BG15: 75 | BH15: 75 | BI15: 75 | BJ15: 50 | BK15: 50 | BL15: 86
B16: La presentación del personal que lo atiende es: (Uso de escarapela de identificación, utiliza elementos de protección personal: guantes, tapabocas, bata, gorro, etc.) | C16: 100 | D16: 100 | E16: 100 | F16: 100 | G16: 100 | H16: 100 | I16: 100 | J16: 100 | K16: 100 | L16: 100 | M16: 100 | N16: 100 | O16: 100 | P16: 100 | Q16: 100 | R16: 100 | S16: 100 | T16: 100 | U16: 100 | V16: 100 | W16: 100 | X16: 100 | Y16: 100 | Z16: 100 | AA16: 100 | AB16: 100 | AC16: 100 | AD16: 100 | AE16: 100 | AF16: 75 | AG16: 75 | AH16: 75 | AI16: 75 | AJ16: 75 | AK16: 75 | AL16: 75 | AM16: 75 | AN16: 75 | AO16: 75 | AP16: 75 | AQ16: 75 | AR16: 75 | AS16: 75 | AT16: 75 | AU16: 75 | AV16: 75 | AW16: 75 | AX16: 75 | AY16: 75 | AZ16: 75 | BA16: 75 | BB16: 75 | BC16: 75 | BD16: 75 | BE16: 100 | BF16: 75 | BG16: 75 | BH16: 75 | BI16: 100 | BJ16: 75 | BK16: 75 | BL16: 88
C17: =AVERAGE(C11:C16) -> 100 | D17: =AVERAGE(D11:D16) -> 100 | E17: 100 | F17: 100 | G17: 100 | H17: =AVERAGE(H11:H16) -> 100 | I17: =AVERAGE(I11:I16) -> 100 | J17: 100 | K17: 100 | L17: 100 | M17: 100 | N17: =AVERAGE(N11:N16) -> 100 | O17: =AVERAGE(O11:O16) -> 100 | P17: 100 | Q17: 100 | R17: 100 | S17: 100 | T17: =AVERAGE(T11:T16) -> 100 | U17: =AVERAGE(U11:U16) -> 100 | V17: 100 | W17: 100 | X17: 100 | Y17: =AVERAGE(Y11:Y16) -> 100 | Z17: 100 | AA17: 100 | AB17: 95.83333333 | AC17: 100 | AD17: 100 | AE17: 79.16666667 | AF17: 75 | AG17: 75 | AH17: 75 | AI17: 75 | AJ17: 75 | AK17: 75 | AL17: 75 | AM17: 75 | AN17: 75 | AO17: 75 | AP17: 75 | AQ17: 75 | AR17: 75 | AS17: 75 | AT17: 75 | AU17: 75 | AV17: 75 | AW17: 75 | AX17: 75 | AY17: 75 | AZ17: 75 | BA17: 75 | BB17: 75 | BC17: 75 | BD17: 75 | BE17: 87.5 | BF17: 75 | BG17: 75 | BH17: 75 | BI17: 83.33333333 | BJ17: 66.66666667 | BK17: 50 | BL17: 87
A18: ELEMENTOS TANGIBLES | B18: La comodidad y el aseo de las instalaciones: habitaciones , consultorios, baños, equipos médicos, la ropa de cama, y mobiliario es: | C18: 100 | D18: 100 | E18: 100 | F18: 100 | G18: 100 | H18: 100 | I18: 100 | J18: 100 | K18: 100 | L18: 100 | M18: 100 | N18: 100 | O18: 100 | P18: 100 | Q18: 100 | R18: 100 | S18: 100 | T18: 100 | U18: 75 | V18: 75 | W18: 100 | X18: 100 | Y18: 100 | Z18: 100 | AA18: 100 | AB18: 100 | AC18: 100 | AD18: 100 | AE18: 100 | AF18: 75 | AG18: 75 | AH18: 75 | AI18: 75 | AJ18: 75 | AK18: 75 | AL18: 75 | AM18: 75 | AN18: 75 | AO18: 75 | AP18: 75 | AQ18: 75 | AR18: 75 | AS18: 75 | AT18: 75 | AU18: 75 | AV18: 75 | AW18: 75 | AX18: 75 | AY18: 75 | AZ18: 75 | BA18: 50 | BB18: 75 | BC18: 75 | BD18: 75 | BE18: 75 | BF18: 75 | BG18: 75 | BH18: 50 | BI18: 100 | BJ18: 75 | BK18: 50 | BL18: =AVERAGE(C18:BK18) -> 85
B19: La alimentación brindada al paciente de acuerdo a su necesidad es: | C19: 100 | D19: 100 | E19: 100 | F19: 100 | G19: 100 | H19: 100 | I19: 100 | J19: 100 | K19: 100 | L19: 100 | M19: 100 | N19: 100 | O19: 100 | P19: 100 | Q19: 100 | R19: 100 | S19: 100 | T19: 100 | U19: 75 | V19: 75 | W19: 100 | X19: 100 | Y19: 100 | AA19: 100 | AB19: 75 | AD19: 75 | AE19: 75 | AF19: 75 | AG19: 75 | AH19: 75 | AI19: 75 | AJ19: 75 | AK19: 75 | AL19: 75 | AM19: 75 | AN19: 75 | AO19: 75 | AP19: 75 | AQ19: 75 | AR19: 75 | AS19: 75 | AT19: 75 | AU19: 75 | AV19: 75 | AW19: 75 | AX19: 75 | AY19: 75 | AZ19: 75 | BA19: 75 | BB19: 75 | BC19: 75 | BD19: 75 | BE19: 75 | BF19: 75 | BG19: 75 | BH19: 75 | BK19: 75 | BL19: =AVERAGE(C19:BK19) -> 85
B20: El silencio percibido en el servicio es: | C20: 100 | D20: 100 | E20: 100 | F20: 100 | G20: 100 | H20: 100 | I20: 100 | J20: 100 | K20: 100 | L20: 100 | M20: 100 | N20: 100 | O20: 100 | P20: 100 | Q20: 100 | R20: 100 | S20: 100 | T20: 100 | U20: 75 | V20: 75 | W20: 100 | X20: 100 | Y20: 100 | Z20: 75 | AA20: 100 | AB20: 100 | AC20: 75 | AD20: 75 | AE20: 75 | AF20: 75 | AG20: 75 | AH20: 75 | AI20: 75 | AJ20: 75 | AK20: 75 | AL20: 75 | AM20: 75 | AN20: 75 | AO20: 75 | AP20: 75 | AQ20: 75 | AR20: 75 | AS20: 75 | AT20: 75 | AU20: 75 | AV20: 75 | AW20: 75 | AX20: 75 | AY20: 75 | AZ20: 75 | BA20: 75 | BB20: 75 | BC20: 75 | BD20: 75 | BE20: 75 | BF20: 75 | BG20: 75 | BH20: 75 | BI20: 75 | BJ20: 75 | BK20: 75 | BL20: =AVERAGE(C20:BK20) -> 84
C21: =AVERAGE(C18:C20) -> 100 | D21: =AVERAGE(D18:D20) -> 100 | E21: 100 | F21: 100 | G21: 100 | H21: =AVERAGE(H18:H20) -> 100 | I21: =AVERAGE(I18:I20) -> 100 | J21: 100 | K21: 100 | L21: 100 | M21: 100 | N21: =AVERAGE(N18:N20) -> 100 | O21: =AVERAGE(O18:O20) -> 100 | P21: 100 | Q21: 100 | R21: 100 | S21: 100 | T21: =AVERAGE(T18:T20) -> 100 | U21: =AVERAGE(U18:U20) -> 75 | V21: =AVERAGE(V18:V20) -> 75 | W21: 100 | X21: 100 | Y21: 100 | Z21: 87.5 | AA21: 100 | AB21: 91.66666667 | AC21: 87.5 | AD21: 83.33333333 | AE21: 83.33333333 | AF21: 75 | AG21: 75 | AH21: 75 | AI21: 75 | AJ21: 75 | AK21: 75 | AL21: 75 | AM21: 75 | AN21: 75 | AO21: 75 | AP21: 75 | AQ21: 75 | AR21: 75 | AS21: 75 | AT21: 75 | AU21: 75 | AV21: 75 | AW21: 75 | AX21: 75 | AY21: 75 | AZ21: 75 | BA21: 66.66666667 | BB21: 75 | BC21: 75 | BD21: 75 | BE21: 75 | BF21: 75 | BG21: 75 | BH21: 66.66666667 | BI21: 87.5 | BJ21: 75 | BK21: 66.66666667 | BL21: 85
A22: EMPATIA | B22: El trato brindado por el personal en su atención es: (una atención con respeto, amabilidad, saludo e interés por servirle) | C22: 100 | D22: 100 | E22: 100 | F22: 100 | G22: 100 | H22: 100 | I22: 100 | J22: 100 | K22: 100 | L22: 100 | M22: 100 | N22: 100 | O22: 100 | P22: 100 | Q22: 100 | R22: 100 | S22: 100 | T22: 100 | U22: 100 | V22: 100 | W22: 100 | X22: 100 | Y22: 100 | Z22: 100 | AA22: 100 | AB22: 100 | AC22: 100 | AD22: 100 | AE22: 100 | AF22: 75 | AG22: 75 | AH22: 75 | AI22: 75 | AJ22: 75 | AK22: 75 | AL22: 75 | AM22: 75 | AN22: 75 | AO22: 75 | AP22: 75 | AQ22: 75 | AR22: 75 | AS22: 75 | AT22: 75 | AU22: 75 | AV22: 75 | AW22: 75 | AX22: 75 | AY22: 75 | AZ22: 75 | BA22: 75 | BB22: 75 | BC22: 75 | BD22: 100 | BE22: 100 | BF22: 75 | BG22: 100 | BH22: 75 | BI22: 75 | BJ22: 75 | BK22: 75 | BL22: =AVERAGE(C22:BK22) -> 88
B23: La privacidad durante su atención es: (Cierre de puertas y cortinas, sin presencia de personas ajenas) | C23: 100 | D23: 100 | E23: 100 | F23: 100 | G23: 100 | H23: 100 | I23: 100 | J23: 100 | K23: 100 | L23: 100 | M23: 100 | N23: 100 | O23: 100 | P23: 100 | Q23: 100 | R23: 100 | S23: 100 | T23: 100 | U23: 100 | V23: 100 | W23: 100 | X23: 100 | Y23: 100 | Z23: 75 | AA23: 100 | AB23: 100 | AC23: 75 | AD23: 75 | AE23: 75 | AF23: 75 | AG23: 75 | AH23: 75 | AI23: 75 | AJ23: 75 | AK23: 75 | AL23: 75 | AM23: 75 | AN23: 75 | AO23: 75 | AP23: 75 | AQ23: 75 | AR23: 75 | AS23: 75 | AT23: 75 | AU23: 75 | AV23: 75 | AW23: 75 | AX23: 75 | AY23: 75 | AZ23: 75 | BA23: 75 | BB23: 75 | BC23: 75 | BD23: 75 | BE23: 100 | BF23: 75 | BG23: 75 | BH23: 75 | BI23: 50 | BJ23: 75 | BK23: 50 | BL23: =AVERAGE(C23:BK23) -> 85
B24: La claridad de la información sobre los Derecho y Deberes que usted tiene como usuario es: | C24: 100 | D24: 100 | E24: 100 | F24: 100 | G24: 100 | H24: 100 | I24: 100 | J24: 100 | K24: 100 | L24: 100 | M24: 100 | N24: 100 | O24: 100 | P24: 100 | Q24: 100 | R24: 100 | S24: 100 | T24: 100 | U24: 100 | V24: 100 | W24: 100 | X24: 100 | Y24: 75 | Z24: 75 | AA24: 100 | AB24: 100 | AC24: 75 | AD24: 75 | AE24: 75 | AF24: 75 | AG24: 75 | AH24: 75 | AI24: 75 | AJ24: 75 | AK24: 75 | AL24: 75 | AM24: 75 | AN24: 75 | AO24: 75 | AP24: 75 | AQ24: 75 | AR24: 75 | AS24: 75 | AT24: 75 | AU24: 75 | AV24: 75 | AW24: 75 | AX24: 75 | AY24: 75 | AZ24: 75 | BA24: 50 | BB24: 75 | BC24: 75 | BD24: 75 | BE24: 50 | BF24: 50 | BG24: 75 | BH24: 50 | BI24: 50 | BJ24: 50 | BK24: 50 | BL24: =AVERAGE(C24:BK24) -> 82
B25: La agilidad del personal para ayudarle a resolver sus inquietudes es: (Respuesta al llamado del timbre, solicitud de información, aseo y mantenimiento). | C25: 100 | D25: 100 | E25: 100 | F25: 100 | G25: 100 | H25: 100 | I25: 100 | J25: 100 | K25: 100 | L25: 100 | M25: 100 | N25: 100 | O25: 100 | P25: 100 | Q25: 100 | R25: 100 | S25: 100 | T25: 100 | U25: 100 | V25: 100 | W25: 100 | X25: 100 | Y25: 100 | Z25: 100 | AA25: 75 | AB25: 100 | AC25: 100 | AD25: 100 | AE25: 100 | AF25: 75 | AG25: 75 | AH25: 75 | AI25: 75 | AJ25: 75 | AK25: 75 | AL25: 75 | AM25: 75 | AN25: 75 | AO25: 75 | AP25: 75 | AQ25: 75 | AR25: 75 | AS25: 75 | AT25: 75 | AU25: 75 | AV25: 75 | AW25: 50 | AX25: 50 | AY25: 50 | AZ25: 75 | BA25: 75 | BB25: 50 | BC25: 50 | BD25: 75 | BE25: 75 | BF25: 75 | BG25: 100 | BH25: 75 | BI25: 75 | BJ25: 75 | BK25: 75 | BL25: =AVERAGE(C25:BK25) -> 85
C26: =AVERAGE(C22:C25) -> 100 | D26: =AVERAGE(D22:D25) -> 100 | E26: 100 | F26: 100 | G26: 100 | H26: =AVERAGE(H22:H25) -> 100 | I26: =AVERAGE(I22:I25) -> 100 | J26: 100 | K26: 100 | L26: 100 | M26: 100 | N26: =AVERAGE(N22:N25) -> 100 | O26: =AVERAGE(O22:O25) -> 100 | P26: 100 | Q26: 100 | R26: 100 | S26: 100 | T26: =AVERAGE(T22:T25) -> 100 | U26: =AVERAGE(U22:U25) -> 100 | V26: 100 | W26: 100 | X26: 100 | Y26: 93.75 | Z26: 87.5 | AA26: 93.75 | AB26: 100 | AC26: 87.5 | AD26: 87.5 | AE26: 87.5 | AF26: 75 | AG26: 75 | AH26: 75 | AI26: 75 | AJ26: 75 | AK26: 75 | AL26: 75 | AM26: 75 | AN26: 75 | AO26: 75 | AP26: 75 | AQ26: 75 | AR26: 75 | AS26: 75 | AT26: 75 | AU26: 75 | AV26: =AVERAGE(AV22:AV25) -> 75 | AW26: =AVERAGE(AW22:AW25) -> 68.75 | AX26: 68.75 | AY26: 68.75 | AZ26: 75 | BA26: 68.75 | BB26: 68.75 | BC26: 68.75 | BD26: 81.25 | BE26: 81.25 | BF26: 68.75 | BG26: 87.5 | BH26: 75 | BI26: 62.5 | BJ26: 68.75 | BK26: 62.5 | BL26: 85
A27: SEGURIDAD | B27: El cuidado frente a la identificación del paciente es: (En cada atención, verifican su nombre, apellido y documento de identidad) | C27: 100 | D27: 100 | E27: 100 | F27: 100 | G27: 100 | H27: 100 | I27: 100 | J27: 100 | K27: 100 | L27: 100 | M27: 100 | N27: 100 | O27: 100 | P27: 100 | Q27: 100 | R27: 100 | S27: 100 | T27: 100 | U27: 100 | V27: 100 | W27: 100 | X27: 100 | Y27: 100 | Z27: 100 | AA27: 100 | AB27: 100 | AC27: 100 | AD27: 100 | AE27: 100 | AF27: 75 | AG27: 75 | AH27: 75 | AI27: 75 | AJ27: 75 | AK27: 75 | AL27: 75 | AM27: 75 | AN27: 75 | AO27: 75 | AP27: 75 | AQ27: 75 | AR27: 75 | AS27: 75 | AT27: 75 | AU27: 75 | AV27: 75 | AW27: 75 | AX27: 75 | AY27: 75 | AZ27: 50 | BA27: 75 | BB27: 75 | BC27: 75 | BD27: 100 | BE27: 75 | BF27: 75 | BG27: 75 | BH27: 75 | BI27: 75 | BJ27: 75 | BK27: 75 | BL27: =AVERAGE(C27:BK27) -> 87
B28: La claridad de la información para presentar una Petición, Queja, Reclamo o Sugerencia es: | C28: 100 | D28: 100 | E28: 100 | F28: 100 | G28: 100 | H28: 100 | I28: 100 | J28: 100 | K28: 100 | L28: 100 | M28: 100 | N28: 100 | O28: 100 | P28: 100 | Q28: 100 | R28: 100 | S28: 100 | T28: 75 | U28: 75 | V28: 75 | W28: 75 | X28: 75 | Y28: 75 | Z28: 75 | AA28: 100 | AB28: 100 | AC28: 75 | AD28: 75 | AE28: 100 | AF28: 75 | AG28: 75 | AH28: 75 | AI28: 75 | AJ28: 75 | AK28: 75 | AL28: 75 | AM28: 75 | AN28: 75 | AO28: 75 | AP28: 75 | AQ28: 75 | AR28: 75 | AS28: 75 | AT28: 75 | AU28: 75 | AV28: 75 | AW28: 75 | AX28: 50 | AY28: 75 | AZ28: 75 | BA28: 50 | BB28: 50 | BC28: 75 | BD28: 75 | BE28: 50 | BF28: 50 | BG28: 75 | BH28: 75 | BI28: 50 | BJ28: 50 | BK28: 50 | BL28: =AVERAGE(C28:BK28) -> 80
B29: La claridad sobre las instrucciones para la disposición correcta de la basura es: | C29: 100 | D29: 100 | E29: 100 | F29: 100 | G29: 100 | H29: 100 | I29: 100 | J29: 100 | K29: 100 | L29: 100 | M29: 100 | N29: 100 | O29: 100 | P29: 100 | Q29: 100 | R29: 100 | S29: 100 | T29: 100 | U29: 100 | V29: 100 | W29: 100 | X29: 100 | Y29: 100 | Z29: 100 | AA29: 100 | AB29: 100 | AC29: 100 | AD29: 100 | AE29: 100 | AF29: 75 | AG29: 75 | AH29: 75 | AI29: 75 | AJ29: 75 | AK29: 75 | AL29: 75 | AM29: 75 | AN29: 75 | AO29: 75 | AP29: 75 | AQ29: 75 | AR29: 75 | AS29: 75 | AT29: 75 | AU29: 75 | AV29: 75 | AW29: 75 | AX29: 75 | AY29: 75 | AZ29: 75 | BA29: 75 | BB29: 75 | BC29: 75 | BD29: 100 | BE29: 75 | BF29: 75 | BG29: 75 | BH29: 50 | BI29: 75 | BJ29: 75 | BK29: 75 | BL29: =AVERAGE(C29:BK29) -> 87
B30: La claridad sobre la importancia de lavarse muy bien las manos y cómo hacerlo es: | C30: 100 | D30: 100 | E30: 100 | F30: 100 | G30: 100 | H30: 100 | I30: 100 | J30: 100 | K30: 100 | L30: 100 | M30: 100 | N30: 100 | O30: 100 | P30: 100 | Q30: 100 | R30: 100 | S30: 100 | T30: 100 | U30: 100 | V30: 100 | W30: 100 | X30: 100 | Y30: 100 | Z30: 100 | AA30: 100 | AB30: 100 | AC30: 100 | AD30: 75 | AE30: 100 | AF30: 75 | AG30: 75 | AH30: 75 | AI30: 75 | AJ30: 75 | AK30: 75 | AL30: 75 | AM30: 75 | AN30: 75 | AO30: 75 | AP30: 75 | AQ30: 75 | AR30: 75 | AS30: 75 | AT30: 75 | AU30: 75 | AV30: 75 | AW30: 75 | AX30: 75 | AY30: 75 | AZ30: 50 | BA30: 75 | BB30: 75 | BC30: 75 | BD30: 100 | BE30: 100 | BF30: 75 | BG30: 75 | BH30: 50 | BI30: 75 | BJ30: 75 | BK30: 75 | BL30: =AVERAGE(C30:BK30) -> 86
B31: La claridad sobre qué hacer, cómo salir y a dónde dirigirse en caso de una emergencia es: (terremoto, atentado, incendio, fuga de gas, etc.) | C31: 100 | D31: 100 | E31: 100 | F31: 100 | G31: 100 | H31: 100 | I31: 100 | J31: 100 | K31: 100 | L31: 100 | M31: 100 | N31: 100 | O31: 100 | P31: 100 | Q31: 100 | R31: 100 | S31: 100 | T31: 75 | U31: 75 | V31: 75 | W31: 75 | X31: 75 | Y31: 75 | Z31: 100 | AA31: 75 | AB31: 75 | AC31: 75 | AD31: 75 | AE31: 100 | AF31: 75 | AG31: 75 | AH31: 75 | AI31: 75 | AJ31: 75 | AK31: 75 | AL31: 75 | AM31: 75 | AN31: 75 | AO31: 75 | AP31: 75 | AQ31: 75 | AR31: 75 | AS31: 75 | AT31: 75 | AU31: 75 | AV31: 75 | AW31: 75 | AX31: 75 | AY31: 50 | AZ31: 50 | BA31: 75 | BB31: 75 | BC31: 50 | BD31: 75 | BE31: 75 | BF31: 50 | BG31: 75 | BH31: 50 | BI31: 75 | BJ31: 50 | BK31: 50 | BL31: =AVERAGE(C31:BK31) -> 80
C32: =AVERAGE(C27:C31) -> 100 | D32: =AVERAGE(D27:D31) -> 100 | E32: 100 | F32: 100 | G32: 100 | H32: =AVERAGE(H27:H31) -> 100 | I32: =AVERAGE(I27:I31) -> 100 | J32: 100 | K32: 100 | L32: 100 | M32: 100 | N32: =AVERAGE(N27:N31) -> 100 | O32: =AVERAGE(O27:O31) -> 100 | P32: 100 | Q32: 100 | R32: 100 | S32: 100 | T32: =AVERAGE(T27:T31) -> 90 | U32: =AVERAGE(U27:U31) -> 90 | V32: =AVERAGE(V27:V31) -> 90 | W32: 90 | X32: 90 | Y32: 90 | Z32: =AVERAGE(Z27:Z31) -> 95 | AA32: 95 | AB32: 95 | AC32: 90 | AD32: 85 | AE32: 100 | AF32: 75 | AG32: 75 | AH32: 75 | AI32: 75 | AJ32: 75 | AK32: 75 | AL32: 75 | AM32: 75 | AN32: 75 | AO32: 75 | AP32: 75 | AQ32: 75 | AR32: 75 | AS32: 75 | AT32: 75 | AU32: 75 | AV32: 75 | AW32: 75 | AX32: 70 | AY32: 70 | AZ32: 60 | BA32: 70 | BB32: 70 | BC32: 70 | BD32: 90 | BE32: 75 | BF32: 65 | BG32: 75 | BH32: 60 | BI32: 70 | BJ32: 65 | BK32: 65 | BL32: =AVERAGE(BL27:BL31) -> 84
B33: TOTAL | C33: =(C17+C21+C26+C32)/4 -> 100 | D33: 100 | E33: 100 | F33: 100 | G33: 100 | H33: 100 | I33: =(I17+I21+I26+I32)/4 -> 100 | J33: 100 | K33: 100 | L33: 100 | M33: 100 | N33: =(N17+N21+N26+N32)/4 -> 100 | O33: =(O17+O21+O26+O32)/4 -> 100 | P33: 100 | Q33: 100 | R33: 100 | S33: 100 | T33: =(T17+T21+T26+T32)/4 -> 97.5 | U33: =(U17+U21+U26+U32)/4 -> 91.25 | V33: 91.25 | W33: 97.5 | X33: 97.5 | Y33: 95.9375 | Z33: =(Z17+Z21+Z26+Z32)/4 -> 92.5 | AA33: 97.1875 | AB33: 95.625 | AC33: 91.25 | AD33: 88.95833333 | AE33: 87.5 | AF33: 75 | AG33: 75 | AH33: 75 | AI33: 75 | AJ33: 75 | AK33: 75 | AL33: 75 | AM33: 75 | AN33: 75 | AO33: 75 | AP33: 75 | AQ33: 75 | AR33: 75 | AS33: 75 | AT33: 75 | AU33: 75 | AV33: 75 | AW33: 73.4375 | AX33: 72.1875 | AY33: 72.1875 | AZ33: 71.25 | BA33: 70.10416667 | BB33: 72.1875 | BC33: 72.1875 | BD33: 80.3125 | BE33: 79.6875 | BF33: 70.9375 | BG33: 78.125 | BH33: 69.16666667 | BI33: 75.83333333 | BJ33: 68.85416667 | BK33: 61.04166667 | BL33: =AVERAGE(C33:BK33) -> 85.0
B34: VALORES:
B35: MUY BUENA= 100 BUENA = 75 REGULAR = 50 MALA = 25 MUY MALA = 0
A36: EN TERMINOS GENERALES, LA ATENCIÓN QUE USTED RECIBIO FUE: MUY BUENA _38___ BUENA __18__ REGULAR _1___ MALA ____ MUY MALA ___
A40: RECOMENDARIA A FAMILIARES O AMIGOS EL SERVICIO EN ESTA INSTITUCIÓN? DEFINITIVAMENTE SI _35___ PROBABLEMENTE SI _19__ DEFINITIVAMENTE NO ____ PROBABLEMENTE NO ____ NO RESPONDE __7__

Sheet UCIN
A1: ENCUESTA DE SATISFACCION DE LOS USUARIOS TABULACION DE DATOS
A6: PERIODO: OCTUBRE SERVICIO: UCIN
A9: DIMENSIONES | C9: 1 | D9: B
D10: 2 | E10: 3 | F10: 4 | G10: 5 | H10: 6 | I10: 7 | J10: 8 | K10: 9 | L10: 10 | M10: 11 | N10: 12 | O10: 13 | P10: 14 | Q10: 15 | R10: 16 | S10: 17 | T10: 18 | U10: 19 | V10: TOTAL
A12: FIABILIDAD | B12: La atención recibida por el personal administrativo es: (Vigilantes, Orientadores, Secretarias, Facturadores,) | C12: 100 | D12: 100 | E12: 100 | F12: 100 | G12: 100 | H12: 100 | I12: 100 | J12: 75 | K12: 75 | L12: 100 | M12: 100 | N12: 75 | O12: 100 | P12: 100 | Q12: 100 | R12: 100 | S12: 75 | T12: 100 | U12: 100 | V12: =AVERAGE(C12:U12) -> 94.74
B13: La atención recibida por el personal asistencial es:(Médicos, enfermeras, terapeutas, nutrición, aseo) | C13: 100 | D13: 100 | E13: 100 | F13: 100 | G13: 100 | H13: 75 | I13: 100 | J13: 75 | K13: 100 | L13: 100 | M13: 100 | N13: 100 | O13: 100 | P13: 100 | Q13: 100 | R13: 100 | S13: 75 | T13: 75 | U13: 100 | V13: 94.74
B14: La oportunidad en la atención recibida es: (al ingreso, valoración, aplicación de medicamentos, terapias, curaciones, etc.) | C14: 100 | D14: 100 | E14: 100 | F14: 100 | G14: 100 | H14: 75 | I14: 100 | J14: 100 | K14: 75 | L14: 100 | M14: 100 | N14: 100 | O14: 100 | P14: 100 | Q14: 100 | R14: 100 | S14: 100 | T14: 75 | U14: 100 | V14: 96.05
B15: La claridad de la información que le brindó el personal es: (requisitos para la atención, horarios de atención, de visitas, restricciones) | C15: 100 | D15: 100 | E15: 100 | F15: 75 | G15: 75 | H15: 75 | I15: 100 | J15: 100 | K15: 75 | L15: 100 | M15: 100 | N15: 100 | O15: 100 | P15: 100 | Q15: 100 | R15: 100 | S15: 100 | T15: 100 | U15: 100 | V15: 94.74
B16: La claridad de la información brindada por el médico tratante sobre su enfermedad, riesgos y tratamiento a realizar es: | C16: 100 | D16: 100 | E16: 100 | F16: 100 | G16: 50 | H16: 100 | I16: 100 | J16: 100 | K16: 100 | L16: 100 | M16: 100 | N16: 100 | O16: 100 | P16: 100 | Q16: 100 | R16: 100 | S16: 75 | T16: 100 | U16: 100 | V16: 96.05
B17: La presentación del personal que lo atiende es: (Uso de escarapela de identificación, utiliza elementos de protección personal: guantes, tapabocas, bata, gorro, etc.) | C17: 100 | D17: 100 | E17: 100 | F17: 100 | G17: 100 | H17: 100 | I17: 100 | J17: 100 | K17: 75 | L17: 100 | M17: 100 | N17: 100 | O17: 100 | P17: 100 | Q17: 100 | R17: 100 | S17: 75 | T17: 100 | U17: 100 | V17: 97.37
C18: =AVERAGE(C12:C17) -> 100 | D18: =AVERAGE(D12:D17) -> 100 | E18: 100 | F18: 95.83333333 | G18: 87.5 | H18: 87.5 | I18: 100 | J18: 91.66666667 | K18: 83.33333333 | L18: 100 | M18: 100 | N18: 95.83333333 | O18: 100 | P18: 100 | Q18: 100 | R18: 100 | S18: 83.33333333 | T18: 91.66666667 | U18: 100 | V18: 95.61
A19: ELEMENTOS TANGIBLES | B19: La comodidad y el aseo de las instalaciones: habitaciones , consultorios, baños, equipos médicos, la ropa de cama, y mobiliario es: | C19: 100 | D19: 100 | E19: 100 | F19: 100 | G19: 100 | H19: 75 | I19: 75 | J19: 100 | K19: 75 | L19: 100 | M19: 100 | N19: 75 | O19: 100 | P19: 100 | Q19: 100 | R19: 100 | S19: 75 | T19: 100 | U19: 100 | V19: =AVERAGE(C19:U19) -> 93.42
B20: La alimentación brindada al paciente de acuerdo a su necesidad es: | C20: 100 | D20: 100 | E20: 100 | F20: 100 | G20: 100 | H20: 50 | I20: 100 | J20: 100 | K20: 75 | L20: 100 | M20: 100 | N20: 100 | O20: 100 | P20: 100 | Q20: 100 | R20: 100 | S20: 75 | T20: 100 | U20: 100 | V20: =AVERAGE(C20:U20) -> 94.74
B21: El silencio percibido en el servicio es: | C21: 100 | D21: 100 | E21: 100 | F21: 100 | G21: 75 | H21: 75 | I21: 75 | J21: 100 | K21: 75 | L21: 100 | M21: 75 | N21: 75 | O21: 100 | P21: 100 | Q21: 100 | R21: 100 | S21: 75 | T21: 100 | U21: 75 | V21: =AVERAGE(C21:U21) -> 89.47
C22: =AVERAGE(C19:C21) -> 100 | D22: =AVERAGE(D19:D21) -> 100 | E22: 100 | F22: 100 | G22: 91.66666667 | H22: 66.66666667 | I22: 83.33333333 | J22: 100 | K22: 75 | L22: 100 | M22: 91.66666667 | N22: 83.33333333 | O22: 100 | P22: 100 | Q22: 100 | R22: 100 | S22: 75 | T22: 100 | U22: 91.66666667 | V22: 92.54
A23: EMPATIA | B23: El trato brindado por el personal en su atención es: (una atención con respeto, amabilidad, saludo e interés por servirle) | C23: 100 | D23: 100 | E23: 100 | F23: 100 | G23: 100 | H23: 75 | I23: 100 | J23: 100 | K23: 75 | L23: 100 | M23: 100 | N23: 100 | O23: 100 | P23: 100 | Q23: 100 | R23: 100 | S23: 100 | U23: 100 | V23: =AVERAGE(C23:U23) -> 97.22
B24: La privacidad durante su atención es: (Cierre de puertas y cortinas, sin presencia de personas ajenas) | C24: 100 | D24: 100 | E24: 100 | F24: 100 | G24: 75 | H24: 100 | I24: 75 | J24: 100 | K24: 75 | L24: 100 | M24: 100 | N24: 75 | O24: 100 | P24: 100 | Q24: 100 | R24: 100 | S24: 100 | T24: 100 | U24: 100 | V24: =AVERAGE(C24:U24) -> 94.74
B25: La claridad de la información sobre los Derecho y Deberes que usted tiene como usuario es: | C25: 100 | D25: 100 | E25: 100 | F25: 100 | G25: 100 | H25: 75 | I25: 50 | J25: 50 | K25: 75 | L25: 100 | M25: 100 | N25: 100 | O25: 100 | P25: 100 | Q25: 100 | R25: 100 | S25: 75 | T25: 100 | U25: 100 | V25: =AVERAGE(C25:U25) -> 90.79
B26: La agilidad del personal para ayudarle a resolver sus inquietudes es: (Respuesta al llamado del timbre, solicitud de información, aseo y mantenimiento). | C26: 100 | D26: 100 | E26: 100 | F26: 100 | G26: 100 | H26: 100 | I26: 100 | J26: 100 | K26: 75 | L26: 100 | M26: 75 | N26: 100 | O26: 100 | P26: 100 | Q26: 100 | R26: 100 | S26: 100 | T26: 100 | U26: 100 | V26: =AVERAGE(C26:U26) -> 97.37
C27: =AVERAGE(C23:C26) -> 100 | D27: =AVERAGE(D23:D26) -> 100 | E27: 100 | F27: 100 | G27: 93.75 | H27: 87.5 | I27: 81.25 | J27: 87.5 | K27: 75 | L27: 100 | M27: 93.75 | N27: 93.75 | O27: 100 | P27: 100 | Q27: 100 | R27: 100 | S27: =AVERAGE(S23:S26) -> 93.75 | T27: 100 | U27: 100 | V27: 95.03
A28: SEGURIDAD | B28: El cuidado frente a la identificación del paciente es: (En cada atención, verifican su nombre, apellido y documento de identidad) | C28: 100 | D28: 100 | E28: 100 | F28: 100 | G28: 100 | H28: 100 | I28: 100 | J28: 100 | K28: 75 | L28: 100 | M28: 100 | N28: 100 | O28: 100 | P28: 100 | Q28: 100 | R28: 100 | S28: 100 | T28: 75 | U28: 100 | V28: =AVERAGE(C28:U28) -> 97.37
B29: La claridad de la información para presentar una Petición, Queja, Reclamo o Sugerencia es: | C29: 100 | D29: 100 | E29: 50 | F29: 75 | G29: 75 | H29: 75 | I29: 75 | J29: 50 | K29: 50 | L29: 100 | M29: 75 | N29: 75 | O29: 100 | P29: 75 | Q29: 100 | R29: 100 | S29: 75 | T29: 25 | U29: 50 | V29: =AVERAGE(C29:U29) -> 75.00
B30: La claridad sobre las instrucciones para la disposición correcta de la basura es: | C30: 100 | D30: 100 | E30: 100 | F30: 100 | G30: 100 | H30: 100 | I30: 75 | J30: 75 | K30: 50 | L30: 100 | M30: 100 | N30: 100 | O30: 100 | P30: 100 | Q30: 100 | R30: 100 | S30: 100 | T30: 100 | U30: 100 | V30: =AVERAGE(C30:U30) -> 94.74
B31: La claridad sobre la importancia de lavarse muy bien las manos y cómo hacerlo es: | C31: 100 | D31: 100 | E31: 100 | F31: 100 | G31: 100 | H31: 100 | I31: 100 | J31: 75 | K31: 50 | L31: 100 | M31: 100 | N31: 100 | O31: 100 | P31: 100 | Q31: 100 | R31: 100 | S31: 100 | T31: 100 | U31: 100 | V31: =AVERAGE(C31:U31) -> 96.05
B32: La claridad sobre qué hacer, cómo salir y a dónde dirigirse en caso de una emergencia es: (terremoto, atentado, incendio, fuga de gas, etc.) | C32: 100 | D32: 100 | E32: 100 | F32: 100 | G32: 100 | H32: 100 | I32: 50 | J32: 50 | K32: 50 | L32: 50 | M32: 25 | N32: 75 | O32: 100 | P32: 75 | Q32: 100 | R32: 100 | S32: 0 | T32: 100 | U32: 100 | V32: =AVERAGE(C32:U32) -> 77.63
C33: =AVERAGE(C28:C32) -> 100 | D33: =AVERAGE(D28:D32) -> 100 | E33: 90 | F33: 95 | G33: 95 | H33: 95 | I33: 80 | J33: 70 | K33: 55 | L33: 90 | M33: 80 | N33: 90 | O33: 100 | P33: 90 | Q33: 100 | R33: 100 | S33: 75 | T33: 80 | U33: 90 | V33: 88.16
B34: TOTAL | C34: =(C18+C22+C27+C33)/4 -> 100 | D34: =(D18+D22+D27+D33)/4 -> 100 | E34: 97.5 | F34: 97.70833333 | G34: 91.97916667 | H34: 84.16666667 | I34: 86.14583333 | J34: 87.29166667 | K34: 72.08333333 | L34: 97.5 | M34: 91.35416667 | N34: 90.72916667 | O34: 100 | P34: 97.5 | Q34: 100 | R34: 100 | S34: 81.77083333 | T34: 92.91666667 | U34: 95.41666667 | V34: 92.84
B35: VALORES:
B36: MUY BUENA= 100 BUENA = 75 REGULAR = 50 MALA = 25 MUY MALA = 0
A37: EN TERMINOS GENERALES, LA ATENCIÓN QUE USTED RECIBIO FUE: MUY BUENA 23 = 88% BUENA 3 = 12% REGULAR ____ MALA ____ MUY MALA ____
A41: RECOMENDARIA A FAMILIARES O AMIGOS EL SERVICIO EN ESTA INSTITUCIÓN? DEFINITIVAMENTE SI 26 = 100% PROBABLEMENTE SI ____ DEFINITIVAMENTE NO ____ PROBABLEMENTE NO ____ NO RESPONDE ____

Sheet UCI
C1: ENCUESTA SATISFACCION DE LOS USUARIOS UCI OCTUBRE 2020
AC3: Fecha Emision
AC4: 43,009.0
B5: SELECCIONE EL NIVEL DE SATISFACCIÓN MÁS CERCANO A SU EXPERIENCIA EN EL SERVICIO.
B7: DIMENSIONES | D7: 1 | E7: 2 | F7: 3 | G7: 4 | H7: 5 | I7: 6 | J7: 7 | K7: 8 | L7: 9 | M7: 10 | N7: 11 | O7: 12 | P7: 13 | Q7: 14 | R7: 15 | S7: 16 | T7: 17 | U7: 18 | V7: 19 | W7: 20 | X7: 21 | Y7: 22 | Z7: 23 | AC7: TOTAL
AA9: 24 | AB9: 25
B10: FIABILIDAD | C10: la atencion recibida por el personal administrativo es: (Vigilantes, Orientadores, Secretarias,Facturadores ) | D10: 100 | E10: 100 | F10: 100 | G10: 100 | H10: 100 | I10: 100 | J10: 100 | K10: 100 | L10: 75 | M10: 75 | N10: 100 | O10: 100 | P10: 100 | Q10: 100 | R10: 100 | S10: 100 | T10: 100 | U10: 100 | V10: 100 | W10: 100 | X10: 100 | Y10: 100 | Z10: 100 | AA10: 100 | AB10: 100 | AC10: =AVERAGE(D10:AB10) -> 98.0
C11: La atención recibida por el personal asistencial es:(Medicos,Enfermeras, Terapeutas,Nutricion, Aseo | D11: 100 | E11: 100 | F11: 100 | G11: 100 | H11: 100 | I11: 100 | J11: 100 | K11: 100 | L11: 75 | M11: 75 | N11: 100 | O11: 100 | P11: 100 | Q11: 100 | R11: 100 | S11: 100 | T11: 100 | U11: 100 | V11: 100 | W11: 100 | X11: 100 | Y11: 100 | Z11: 100 | AA11: 100 | AB11: 100 | AC11: 98.0
C12: La oportunidad en la atencion recibida es:(al ingreso, valoracion, aplicación de medicamentos, terapias, curaciones etc) | D12: 100 | E12: 100 | F12: 100 | G12: 100 | H12: 100 | I12: 100 | J12: 100 | K12: 100 | L12: 75 | M12: 75 | N12: 100 | O12: 100 | P12: 100 | Q12: 100 | R12: 100 | S12: 100 | T12: 100 | U12: 100 | V12: 100 | W12: 100 | X12: 100 | Y12: 100 | Z12: 100 | AA12: 100 | AB12: 100 | AC12: 98.0
C13: La claridad de la informacion que le brindo el personal es :(requisitos para la atencion, horarios de atencion,de visitas, restricciones ) | D13: 100 | E13: 100 | F13: 100 | G13: 100 | H13: 100 | I13: 100 | J13: 100 | K13: 100 | L13: 75 | M13: 75 | N13: 100 | O13: 100 | P13: 100 | Q13: 100 | R13: 100 | S13: 100 | T13: 100 | U13: 100 | V13: 100 | W13: 100 | X13: 100 | Y13: 100 | Z13: 100 | AA13: 100 | AB13: 100 | AC13: 98.0
C14: La claridad de la informacion brindada por el medico tratante sobre su enferemedad, riesgos y tratamiento a realizar es: | D14: 100 | E14: 100 | F14: 100 | G14: 100 | H14: 100 | I14: 100 | J14: 100 | K14: 100 | L14: 75 | M14: 75 | N14: 100 | O14: 100 | P14: 100 | Q14: 100 | R14: 100 | S14: 100 | T14: 100 | U14: 100 | V14: 100 | W14: 100 | X14: 100 | Y14: 100 | Z14: 100 | AA14: 100 | AB14: 100 | AC14: 98.0
C15: La presentacion del personal que lo atiende es:(uso de escarapela de identificacion,utiliza elementos de proteccion personal: guantes, tapabocas,bata, gorro,etc) | D15: 100 | E15: 100 | F15: 100 | G15: 100 | H15: 100 | I15: 100 | J15: 100 | K15: 100 | L15: 75 | M15: 75 | N15: 100 | O15: 100 | P15: 100 | Q15: 100 | R15: 100 | S15: 100 | T15: 100 | U15: 100 | V15: 100 | W15: 100 | X15: 100 | Y15: 100 | Z15: 100 | AA15: 100 | AB15: 100 | AC15: 98.0
D16: =AVERAGE(D10:D14) -> 100 | E16: 100 | F16: 100 | G16: 100 | H16: 100 | I16: 100 | J16: 100 | K16: 100 | L16: =AVERAGE(F10:F14) -> 100 | M16: =AVERAGE(M10:M14) -> 75 | N16: 100 | O16: 100 | P16: 100 | Q16: 100 | R16: 100 | S16: 100 | T16: 100 | U16: 100 | V16: 100 | W16: 100 | X16: 100 | Y16: 100 | Z16: 100 | AA16: 100 | AB16: =AB14 -> 100 | AC16: =AVERAGE(AC10:AC15) -> 98.0
B17: ELEMENTOS TANGIBLES | C17: La comodidad y el aseo de las instalaciones:habitaciones, consultorios, baños, equipos medicos, la ropa de cama y mobiliario es: | D17: 100 | E17: 100 | F17: 100 | G17: 100 | H17: 100 | I17: 100 | J17: 100 | K17: 100 | L17: 75 | M17: 75 | N17: 100 | O17: 100 | P17: 100 | Q17: 100 | R17: 100 | S17: 100 | T17: 100 | U17: 100 | V17: 100 | W17: 100 | X17: 100 | Y17: 100 | Z17: 100 | AA17: 100 | AB17: 100 | AC17: 98.0
C18: La alimentacion brindada al paciente de acuerdo a su necesidad es: | D18: 100 | E18: 100 | F18: 100 | G18: 100 | H18: 100 | I18: 100 | J18: 100 | K18: 100 | L18: 75 | M18: 75 | N18: 100 | O18: 100 | P18: 100 | Q18: 100 | R18: 100 | S18: 100 | T18: 100 | U18: 100 | V18: 100 | W18: 100 | X18: 100 | Y18: 100 | Z18: 100 | AA18: 100 | AB18: 100 | AC18: 98.0
C19: El silencio percibido en el servicio es: | D19: 100 | E19: 100 | F19: 100 | G19: 100 | H19: 100 | I19: 100 | J19: 100 | K19: 100 | L19: 75 | M19: 75 | N19: 100 | O19: 100 | P19: 100 | Q19: 100 | R19: 100 | S19: 100 | T19: 100 | U19: 100 | V19: 100 | W19: 100 | X19: 100 | Y19: 100 | Z19: 100 | AA19: 100 | AB19: 0 | AC19: 94.0
D20: =AVERAGE(D17:D19) -> 100 | E20: 100 | F20: 100 | G20: 100 | H20: 100 | I20: 100 | J20: 100 | K20: 100 | L20: 75 | M20: 75 | N20: 100 | O20: 100 | P20: 100 | Q20: 100 | R20: 100 | S20: 100 | T20: 100 | U20: 100 | V20: 100 | W20: 100 | X20: 100 | Y20: 100 | Z20: 100 | AA20: 100 | AB20: 66.66666667 | AC20: 96.7
B21: EMPATIA | C21: El trato brindado por el personal en su atencion es:(una atencion con respeto,amabilidad,saludo e interes por servirle ) | D21: 100 | E21: 100 | F21: 100 | G21: 100 | H21: 100 | I21: 100 | J21: 100 | K21: 100 | L21: 75 | M21: 75 | N21: 100 | O21: 100 | P21: 100 | Q21: 100 | R21: 100 | S21: 100 | T21: 100 | U21: 100 | V21: 100 | W21: 100 | X21: 100 | Y21: 100 | Z21: 100 | AA21: 100 | AB21: 100 | AC21: 98.0
C22: La privacidad durante su atencion es:(cierre de puertas y cortinas,sin presencia de personas ajenas ) | D22: 100 | E22: 100 | F22: 100 | G22: 100 | H22: 100 | I22: 100 | J22: 100 | K22: 100 | L22: 75 | M22: 75 | N22: 100 | O22: 100 | P22: 100 | Q22: 100 | R22: 100 | S22: 100 | T22: 100 | U22: 100 | V22: 100 | W22: 100 | X22: 100 | Y22: 100 | Z22: 100 | AA22: 100 | AB22: 100 | AC22: 98.0
C23: La claridad de la informacion sobre los derechos y deberes que usted tiene como usuario es: | D23: 100 | E23: 100 | F23: 100 | G23: 100 | H23: 100 | I23: 100 | J23: 100 | K23: 100 | L23: 75 | M23: 75 | N23: 100 | O23: 100 | P23: 100 | Q23: 100 | R23: 100 | S23: 100 | T23: 100 | U23: 100 | V23: 100 | W23: 100 | X23: 100 | Y23: 100 | Z23: 100 | AA23: 100 | AB23: 100 | AC23: 98.0
C24: La agilidad del personal para ayudarle a resolver sus inquietudes es:(respuesta al llamado del timbre,solicitud de informacion,aseo y mantenimiento) | D24: 100 | E24: 100 | F24: 100 | G24: 100 | H24: 100 | I24: 100 | J24: 100 | K24: 100 | L24: 75 | M24: 75 | N24: 100 | O24: 100 | P24: 100 | Q24: 100 | R24: 100 | S24: 100 | T24: 100 | U24: 100 | V24: 100 | W24: 100 | X24: 100 | Y24: 100 | Z24: 100 | AA24: 100 | AB24: 100 | AC24: 98.0
D25: =AVERAGE(D21:D24) -> 100 | E25: =AVERAGE(E21:E23) -> 100 | F25: 100 | G25: 100 | H25: 100 | I25: 100 | J25: 100 | K25: 100 | L25: =AVERAGE(L21:L24) -> 75 | M25: 75 | N25: =AVERAGE(N21:N24) -> 100 | O25: 100 | P25: 100 | Q25: 100 | R25: 100 | S25: 100 | T25: 100 | U25: 100 | V25: 100 | W25: 100 | X25: 100 | Y25: 100 | Z25: 100 | AA25: 100 | AB25: 100 | AC25: =AVERAGE(AC21:AC24) -> 98.0
B26: SEGURIDAD | C26: El cuidado frente a la identificacion del paciente es:(En cada atencion, verifican su nombre, apellido y documento de identidad ) | D26: 100 | E26: 100 | F26: 100 | G26: 100 | H26: 100 | I26: 100 | J26: 100 | K26: 100 | L26: 75 | M26: 75 | N26: 100 | O26: 100 | P26: 100 | Q26: 100 | R26: 100 | S26: 100 | T26: 100 | U26: 100 | V26: 100 | W26: 100 | X26: 100 | Y26: 100 | Z26: 100 | AA26: 100 | AB26: 100 | AC26: 98.0
C27: La claridad de la informacion para presentar una Peticion, Queja, Reclamo o Sugerencia es: | D27: 100 | E27: 100 | F27: 100 | G27: 100 | H27: 100 | I27: 100 | J27: 100 | K27: 100 | L27: 75 | M27: 75 | N27: 100 | O27: 100 | P27: 100 | Q27: 100 | R27: 100 | S27: 100 | T27: 100 | U27: 100 | V27: 100 | W27: 100 | X27: 100 | Y27: 100 | Z27: 100 | AA27: 100 | AB27: 100 | AC27: 98.0
C28: La claridad sobre las instruciones para la disposicion correcta de la basura es: | D28: 100 | E28: 100 | F28: 100 | G28: 100 | H28: 100 | I28: 100 | J28: 100 | K28: 100 | L28: 75 | M28: 75 | N28: 100 | O28: 100 | P28: 100 | Q28: 100 | R28: 100 | S28: 100 | T28: 100 | U28: 100 | V28: 100 | W28: 100 | X28: 100 | Y28: 100 | Z28: 100 | AA28: 100 | AB28: 100 | AC28: 98.0
C29: La claridad sobre la importancia de lavarse muy bien las manos y como hacerlo es: | D29: 100 | E29: 100 | F29: 100 | G29: 100 | H29: 100 | I29: 100 | J29: 100 | K29: 100 | L29: 75 | M29: 75 | N29: 100 | O29: 100 | P29: 100 | Q29: 100 | R29: 100 | S29: 100 | T29: 100 | U29: 100 | V29: 100 | W29: 100 | X29: 100 | Y29: 100 | Z29: 100 | AA29: 100 | AB29: 100 | AC29: 98.0
C30: La claridad sobre que hacer, como salir y a donde dirigirse en caso de una emergencia es:(terremoto, atentado, incendio, fuga de gas, etc) | D30: 75 | E30: 75 | F30: 75 | G30: 75 | H30: 75 | I30: 75 | J30: 75 | K30: 75 | L30: 75 | M30: 75 | N30: 75 | O30: 75 | P30: 75 | Q30: 75 | R30: 75 | S30: 75 | T30: 75 | U30: 75 | V30: 75 | W30: 75 | X30: 75 | Y30: 75 | Z30: 75 | AA30: 75 | AB30: 75 | AC30: 75.0
D31: =AVERAGE(D26:D30) -> 95 | E31: 95 | F31: 95 | G31: 95 | H31: 95 | I31: 95 | J31: 95 | K31: 95 | L31: 75 | M31: 75 | N31: 95 | O31: 95 | P31: 95 | Q31: 95 | R31: 95 | S31: 95 | T31: 95 | U31: 95 | V31: 95 | W31: 95 | X31: 95 | Y31: 95 | Z31: 95 | AA31: 95 | AB31: 95 | AC31: 93.4
D32: =AVERAGE(D16+D20+D25+D31) -> 395 | E32: 395 | F32: 395 | G32: 395 | H32: 395 | I32: 395 | J32: 395 | K32: 395 | L32: 325 | M32: 300 | N32: 395 | O32: 395 | P32: 395 | Q32: 395 | R32: 395 | S32: 395 | T32: 395 | U32: 395 | V32: 395 | W32: 395 | X32: 395 | Y32: 395 | Z32: 395 | AA32: 395 | AB32: 361.6666667 | AC32: =AVERAGE(D32+AB32) -> 757
D33: =D32/4 -> 98.75 | E33: =E32/4 -> 98.75 | F33: =F32/4 -> 98.75 | G33: 98.75 | H33: 98.75 | I33: 98.75 | J33: 98.75 | K33: 98.75 | L33: 81.25 | M33: 75 | N33: 98.75 | O33: 98.75 | P33: 98.75 | Q33: 98.75 | R33: 98.75 | S33: 98.75 | T33: 98.75 | U33: 98.75 | V33: 98.75 | W33: 98.75 | X33: 98.75 | Y33: 98.75 | Z33: 98.75 | AA33: =AA32/5 -> 79 | AB33: 72.33333333 | AC33: =(AC16+AC20+AC25+AC31)/4 -> 97
B38: RECOMENDARIA A FAMILIARES O AMIGOS EL SERVICIO EN ESTA INSTITUCION? DEFINITIVAMENTE SI ____ PROBABLEMENTE SI ___ DEFINITIVAMENTE NO ___ PROBABLEMENTE NO ____ NO RESPONDE ____
B42: LINEA DE ATENCION AL CLIENTE 7732928 - 7253750

Sheet TOTAL
A1: ENCUESTA DE SATISFACCION DE LOS USUARIOS TABULACION DE DATOS
A6: PERIODO: OCTUBRE 2020 TOTAL ENCUESTAS 183
A9: DIMENSIONES | C9: QUIROFANO | D9: URGENCIAS | E9: HOSPITALIZACION | F9: UCI | G9: UCIN | H9: TOTAL
A11: FIABILIDAD | B11: La atención recibida por el personal administrativo es: (Vigilantes, Orientadores, Secretarias, Facturadores,) | C11: 90 | D11: 93 | E11: 87 | F11: 98 | G11: 95 | H11: =AVERAGE(C11:G11) -> 92.5
B12: La atención recibida por el personal asistencial es:(Médicos, enfermeras, terapeutas, nutrición, aseo) | C12: 89 | D12: 93 | E12: 87 | F12: 98 | G12: 95 | H12: =AVERAGE(C12:G12) -> 92.5
B13: La oportunidad en la atención recibida es: (al ingreso, valoración, aplicación de medicamentos, terapias, curaciones, etc.) | C13: 87 | D13: 92 | E13: 85 | F13: 98 | G13: 96 | H13: 91.7
B14: La claridad de la información que le brindó el personal es: (requisitos para la atención, horarios de atención, de visitas, restricciones) | C14: 89 | D14: 91 | E14: 86 | F14: 98 | G14: 95 | H14: 91.8
B15: La claridad de la información brindada por el médico tratante sobre su enfermedad, riesgos y tratamiento a realizar es: | C15: 88 | D15: 93 | E15: 86 | F15: 98 | G15: 96 | H15: 92.0
B16: La presentación del personal que lo atiende es: (Uso de escarapela de identificación, utiliza elementos de protección personal: guantes, tapabocas, bata, gorro, etc.) | C16: 89 | D16: 91 | E16: 88 | F16: 98 | G16: 97 | H16: 92.7
C17: =AVERAGE(C11:C16) -> 89 | D17: =AVERAGE(D11:D16) -> 92 | E17: 87 | F17: 98 | G17: 96 | H17: 92
A18: ELEMENTOS TANGIBLES | B18: La comodidad y el aseo de las instalaciones: habitaciones , consultorios, baños, equipos médicos, la ropa de cama, y mobiliario es: | C18: 82 | D18: 87 | E18: 85 | F18: 98 | G18: 93 | H18: 89.2
B19: La alimentación brindada al paciente de acuerdo a su necesidad es: | C19: 83 | D19: 95 | E19: 85 | F19: 98 | G19: 95 | H19: 91.0
B20: El silencio percibido en el servicio es: | C20: 84 | D20: 81 | E20: 84 | F20: 94 | G20: 89 | H20: 86.5
C21: =AVERAGE(C18:C20) -> 83 | D21: =AVERAGE(D18:D20) -> 87 | E21: 85 | F21: 97 | G21: 93 | H21: 89
A22: EMPATIA | B22: El trato brindado por el personal en su atención es: (una atención con respeto, amabilidad, saludo e interés por servirle) | C22: 89 | D22: 93 | E22: 88 | F22: 98 | G22: 97 | H22: 93.2
B23: La privacidad durante su atención es: (Cierre de puertas y cortinas, sin presencia de personas ajenas) | C23: 86 | D23: 91 | E23: 85 | F23: 98 | G23: 95 | H23: 90.9
B24: La claridad de la información sobre los Derecho y Deberes que usted tiene como usuario es: | C24: 80 | D24: 58 | E24: 82 | F24: 98 | G24: 91 | H24: 81.9
B25: La agilidad del personal para ayudarle a resolver sus inquietudes es: (Respuesta al llamado del timbre, solicitud de información, aseo y mantenimiento). | C25: 88 | D25: 88 | E25: 85 | F25: 98 | G25: 97 | H25: 91.1
C26: =AVERAGE(C22:C25) -> 86 | D26: =AVERAGE(D22:D25) -> 83 | E26: 85 | F26: 98 | G26: 95 | H26: 89
A27: SEGURIDAD | B27: El cuidado frente a la identificación del paciente es: (En cada atención, verifican su nombre, apellido y documento de identidad) | C27: 90 | D27: 90 | E27: 87 | F27: 98 | G27: 97 | H27: 92.4
B28: La claridad de la información para presentar una Petición, Queja, Reclamo o Sugerencia es: | C28: 76 | D28: 58 | E28: 80 | F28: 98 | G28: 75 | H28: 77.5
B29: La claridad sobre las instrucciones para la disposición correcta de la basura es: | C29: 90 | D29: 92 | E29: 87 | F29: 98 | G29: 95 | H29: 92.3
B30: La claridad sobre la importancia de lavarse muy bien las manos y cómo hacerlo es: | C30: 90 | D30: 94 | E30: 86 | F30: 98 | G30: 96 | H30: 92.9
B31: La claridad sobre qué hacer, cómo salir y a dónde dirigirse en caso de una emergencia es: (terremoto, atentado, incendio, fuga de gas, etc.) | C31: 76 | D31: 74 | E31: 80 | F31: 75 | G31: 78 | H31: 76.6
C32: =AVERAGE(C27:C31) -> 84 | D32: =AVERAGE(D27:D31) -> 82 | E32: 84 | F32: 93 | G32: 88 | H32: 86
B33: TOTAL | C33: =(C17+C21+C26+C32)/4 -> 86 | D33: =(D17+D21+D26+D32)/4 -> 86 | E33: 85 | F33: 97 | G33: 93 | H33: 89

Sheet GESTANTES
A1: ENCUESTA DE SATISFACCION DE LOS USUARIOS TABULACION DE DATOS
A6: PERIODO: SEPTIEMBRE 2020 ENCUESTAS GESTANTES
A9: DIMENSIONES | C9: 1 | D9: 2 | E9: 3 | F9: 4 | G9: 5 | H9: 6 | I9: 7 | J9: 8 | K9: 9 | L9: 10 | M9: 11 | N9: 12 | O9: 13 | P9: 14 | Q9: 15 | R9: 16 | S9: 17 | T9: 18 | U9: 19 | V9: 20 | W9: 21 | X9: 22 | Y9: 23 | Z9: 24 | AA9: TOTAL
A11: FIABILIDAD | B11: La atención recibida por el personal administrativo es: (Vigilantes, Orientadores, Secretarias, Facturadores,) | C11: 100 | D11: 100 | E11: 100 | F11: 100 | G11: 100 | H11: 100 | I11: 100 | J11: 100 | K11: 100 | L11: 100 | M11: 100 | N11: 100 | O11: 100 | P11: 100 | Q11: 75 | R11: 75 | S11: 75 | T11: 75 | U11: 75 | V11: 75 | W11: 75 | X11: 100 | Y11: 100 | Z11: 75 | AA11: =AVERAGE(C11:Z11) -> 92
B12: La atención recibida por el personal asistencial es:(Médicos, enfermeras, terapeutas, nutrición, aseo) | C12: 100 | D12: 100 | E12: 100 | F12: 100 | G12: 100 | H12: 100 | I12: 100 | J12: 100 | K12: 100 | L12: 100 | M12: 100 | N12: 100 | O12: 100 | P12: 100 | Q12: 75 | R12: 75 | S12: 75 | T12: 75 | U12: 75 | V12: 75 | W12: 75 | X12: 100 | Y12: 100 | Z12: 75 | AA12: 92
B13: La oportunidad en la atención recibida es: (al ingreso, valoración, aplicación de medicamentos, terapias, curaciones, etc.) | C13: 100 | D13: 100 | E13: 100 | F13: 100 | G13: 100 | H13: 100 | I13: 100 | J13: 100 | K13: 100 | L13: 100 | M13: 100 | N13: 100 | O13: 100 | P13: 100 | Q13: 75 | R13: 75 | S13: 75 | T13: 75 | U13: 75 | V13: 75 | W13: 75 | X13: 75 | Y13: 50 | Z13: 50 | AA13: 88
B14: La claridad de la información que le brindó el personal es: (requisitos para la atención, horarios de atención, de visitas, restricciones) | C14: 100 | D14: 100 | E14: 100 | F14: 100 | G14: 100 | H14: 100 | I14: 100 | J14: 100 | K14: 100 | L14: 100 | M14: 100 | N14: 100 | O14: 100 | P14: 100 | Q14: 75 | R14: 75 | S14: 75 | T14: 75 | U14: 75 | V14: 75 | W14: 75 | X14: 75 | Y14: 75 | Z14: 75 | AA14: 90
B15: La claridad de la información brindada por el médico tratante sobre su enfermedad, riesgos y tratamiento a realizar es: | C15: 100 | D15: 100 | E15: 100 | F15: 100 | G15: 100 | H15: 100 | I15: 100 | J15: 100 | K15: 100 | L15: 100 | M15: 100 | N15: 100 | O15: 100 | P15: 100 | Q15: 75 | R15: 75 | S15: 75 | T15: 75 | U15: 75 | V15: 75 | W15: 75 | X15: 75 | Y15: 75 | Z15: 50 | AA15: 89
B16: La presentación del personal que lo atiende es: (Uso de escarapela de identificación, utiliza elementos de protección personal: guantes, tapabocas, bata, gorro, etc.) | C16: 100 | D16: 100 | E16: 100 | F16: 100 | G16: 100 | H16: 100 | I16: 100 | J16: 100 | K16: 100 | L16: 100 | M16: 100 | N16: 100 | O16: 100 | P16: 100 | Q16: 75 | R16: 75 | S16: 75 | T16: 75 | U16: 75 | V16: 75 | W16: 75 | X16: 100 | Y16: 100 | Z16: 75 | AA16: 92
C17: =AVERAGE(C11:C16) -> 100 | D17: =AVERAGE(D11:D16) -> 100 | E17: =AVERAGE(E11:E16) -> 100 | F17: 100 | G17: 100 | H17: 100 | I17: 100 | J17: =AVERAGE(J11:J16) -> 100 | K17: =AVERAGE(K11:K16) -> 100 | L17: 100 | M17: 100 | N17: =AVERAGE(N11:N16) -> 100 | O17: 100 | P17: 100 | Q17: 75 | R17: 75 | S17: 75 | T17: 75 | U17: 75 | V17: 75 | W17: 75 | X17: 87.5 | Y17: 83.33333333 | Z17: 50 | AA17: 90
A18: ELEMENTOS TANGIBLES | B18: La comodidad y el aseo de las instalaciones: habitaciones , consultorios, baños, equipos médicos, la ropa de cama, y mobiliario es: | C18: 100 | D18: 100 | E18: 100 | F18: 100 | G18: 100 | H18: 100 | I18: 100 | J18: 100 | K18: 100 | L18: 100 | M18: 100 | N18: 75 | O18: 75 | P18: 100 | Q18: 75 | R18: 75 | S18: 75 | T18: 75 | U18: 75 | V18: 75 | W18: 75 | X18: 75 | Y18: 100 | Z18: 50 | AA18: =AVERAGE(C18:Z18) -> 88
B19: La alimentación brindada al paciente de acuerdo a su necesidad es: | C19: 100 | D19: 100 | E19: 100 | F19: 100 | G19: 100 | H19: 100 | I19: 100 | J19: 100 | K19: 100 | L19: 100 | M19: 100 | N19: 75 | O19: 75 | P19: 100 | Q19: 75 | R19: 75 | S19: 75 | T19: 75 | U19: 75 | V19: 75 | W19: 75 | X19: 75 | Z19: 75 | AA19: =AVERAGE(C19:Z19) -> 88
B20: El silencio percibido en el servicio es: | C20: 100 | D20: 100 | E20: 100 | F20: 100 | G20: 100 | H20: 100 | I20: 100 | J20: 100 | K20: 100 | L20: 100 | M20: 100 | N20: 75 | O20: 75 | P20: 100 | Q20: 75 | R20: 75 | S20: 75 | T20: 75 | U20: 75 | V20: 75 | W20: 75 | X20: 75 | Y20: 75 | Z20: 75 | AA20: =AVERAGE(C20:Z20) -> 88
C21: =AVERAGE(C18:C20) -> 100 | D21: =AVERAGE(D18:D20) -> 100 | E21: =AVERAGE(E18:E20) -> 100 | F21: 100 | G21: 100 | H21: 100 | I21: 100 | J21: =AVERAGE(J18:J20) -> 100 | K21: =AVERAGE(K18:K20) -> 100 | L21: 100 | M21: 100 | N21: =AVERAGE(N18:N20) -> 75 | O21: 75 | P21: 100 | Q21: 75 | R21: 75 | S21: 75 | T21: 75 | U21: 75 | V21: 75 | W21: 75 | X21: 75 | Y21: 87.5 | Z21: 66.66666667 | AA21: 88
A22: EMPATIA | B22: El trato brindado por el personal en su atención es: (una atención con respeto, amabilidad, saludo e interés por servirle) | C22: 100 | D22: 100 | E22: 100 | F22: 100 | G22: 100 | H22: 100 | I22: 100 | J22: 100 | K22: 100 | L22: 100 | M22: 100 | N22: 100 | O22: 100 | P22: 100 | Q22: 75 | R22: 75 | S22: 75 | T22: 75 | U22: 75 | V22: 75 | W22: 100 | X22: 100 | Y22: 75 | Z22: 75 | AA22: =AVERAGE(C22:Z22) -> 92
B23: La privacidad durante su atención es: (Cierre de puertas y cortinas, sin presencia de personas ajenas) | C23: 100 | D23: 100 | E23: 100 | F23: 100 | G23: 100 | H23: 100 | I23: 100 | J23: 100 | K23: 100 | L23: 100 | M23: 100 | N23: 100 | O23: 100 | P23: 100 | Q23: 75 | R23: 75 | S23: 75 | T23: 75 | U23: 75 | V23: 75 | W23: 75 | X23: 100 | Y23: 50 | Z23: 50 | AA23: =AVERAGE(C23:Z23) -> 89
B24: La claridad de la información sobre los Derecho y Deberes que usted tiene como usuario es: | C24: 100 | D24: 100 | E24: 100 | F24: 100 | G24: 100 | H24: 100 | I24: 100 | J24: 100 | K24: 100 | L24: 100 | M24: 100 | N24: 100 | O24: 100 | P24: 100 | Q24: 75 | R24: 75 | S24: 75 | T24: 75 | U24: 75 | V24: 75 | W24: 75 | X24: 50 | Y24: 50 | Z24: 50 | AA24: =AVERAGE(C24:Z24) -> 86
B25: La agilidad del personal para ayudarle a resolver sus inquietudes es: (Respuesta al llamado del timbre, solicitud de información, aseo y mantenimiento). | C25: 100 | D25: 100 | E25: 100 | F25: 100 | G25: 100 | H25: 100 | I25: 100 | J25: 100 | K25: 100 | L25: 100 | M25: 100 | N25: 100 | O25: 100 | P25: 100 | Q25: 75 | R25: 75 | S25: 75 | T25: 75 | U25: 50 | V25: 50 | W25: 75 | X25: 75 | Y25: 75 | Z25: 75 | AA25: =AVERAGE(C25:Z25) -> 88
C26: =AVERAGE(C22:C25) -> 100 | D26: =AVERAGE(D22:D25) -> 100 | E26: =AVERAGE(E22:E25) -> 100 | F26: 100 | G26: 100 | H26: 100 | I26: 100 | J26: =AVERAGE(J22:J25) -> 100 | K26: =AVERAGE(K22:K25) -> 100 | L26: 100 | M26: 100 | N26: =AVERAGE(N22:N25) -> 100 | O26: 100 | P26: 100 | Q26: 75 | R26: 75 | S26: 75 | T26: 75 | U26: 68.75 | V26: 68.75 | W26: 81.25 | X26: 81.25 | Y26: 62.5 | Z26: 62.5 | AA26: 89
A27: SEGURIDAD | B27: El cuidado frente a la identificación del paciente es: (En cada atención, verifican su nombre, apellido y documento de identidad) | C27: 100 | D27: 100 | E27: 100 | F27: 100 | G27: 100 | H27: 100 | I27: 100 | J27: 100 | K27: 100 | L27: 100 | M27: 100 | N27: 100 | O27: 100 | P27: 100 | Q27: 75 | R27: 75 | S27: 75 | T27: 75 | U27: 75 | V27: 75 | W27: 100 | X27: 75 | Y27: 75 | Z27: 75 | AA27: =AVERAGE(C27:Z27) -> 91
B28: La claridad de la información para presentar una Petición, Queja, Reclamo o Sugerencia es: | C28: 100 | D28: 100 | E28: 100 | F28: 100 | G28: 100 | H28: 100 | I28: 100 | J28: 100 | K28: 100 | L28: 100 | M28: 100 | N28: 75 | O28: 75 | P28: 75 | Q28: 75 | R28: 75 | S28: 75 | T28: 75 | U28: 50 | V28: 75 | W28: 75 | X28: 50 | Y28: 50 | Z28: 50 | AA28: =AVERAGE(C28:Z28) -> 82
B29: La claridad sobre las instrucciones para la disposición correcta de la basura es: | C29: 100 | D29: 100 | E29: 100 | F29: 100 | G29: 100 | H29: 100 | I29: 100 | J29: 100 | K29: 100 | L29: 100 | M29: 100 | N29: 100 | O29: 100 | P29: 100 | Q29: 75 | R29: 75 | S29: 75 | T29: 75 | U29: 75 | V29: 75 | W29: 100 | X29: 75 | Y29: 75 | Z29: 75 | AA29: =AVERAGE(C29:Z29) -> 91
B30: La claridad sobre la importancia de lavarse muy bien las manos y cómo hacerlo es: | C30: 100 | D30: 100 | E30: 100 | F30: 100 | G30: 100 | H30: 100 | I30: 100 | J30: 100 | K30: 100 | L30: 100 | M30: 100 | N30: 100 | O30: 100 | P30: 100 | Q30: 75 | R30: 75 | S30: 75 | T30: 75 | U30: 75 | V30: 75 | W30: 100 | X30: 100 | Y30: 75 | Z30: 75 | AA30: =AVERAGE(C30:Z30) -> 92
B31: La claridad sobre qué hacer, cómo salir y a dónde dirigirse en caso de una emergencia es: (terremoto, atentado, incendio, fuga de gas, etc.) | C31: 100 | D31: 100 | E31: 100 | F31: 100 | G31: 100 | H31: 100 | I31: 100 | J31: 100 | K31: 100 | L31: 100 | M31: 100 | N31: 75 | O31: 75 | P31: 75 | Q31: 75 | R31: 75 | S31: 75 | T31: 75 | U31: 75 | V31: 50 | W31: 75 | X31: 75 | Y31: 75 | Z31: 50 | AA31: =AVERAGE(C31:Z31) -> 84
C32: =AVERAGE(C27:C31) -> 100 | D32: =AVERAGE(D27:D31) -> 100 | E32: =AVERAGE(E27:E31) -> 100 | F32: 100 | G32: 100 | H32: 100 | I32: 100 | J32: =AVERAGE(J27:J31) -> 100 | K32: =AVERAGE(K27:K31) -> 100 | L32: 100 | M32: 100 | N32: =AVERAGE(N27:N31) -> 90 | O32: 90 | P32: 90 | Q32: 75 | R32: 75 | S32: 75 | T32: 75 | U32: 70 | V32: 70 | W32: 90 | X32: 75 | Y32: 70 | Z32: 65 | AA32: 88
B33: TOTAL | C33: =(C17+C21+C26+C32)/4 -> 100 | D33: 100 | E33: 100 | F33: 100 | G33: 100 | H33: 100 | I33: 100 | J33: =(J17+J21+J26+J32)/4 -> 100 | K33: =(K17+K21+K26+K32)/4 -> 100 | L33: 100 | M33: 100 | N33: =(N17+N21+N26+N32)/4 -> 91.25 | O33: 91.25 | P33: 97.5 | Q33: 75 | R33: 75 | S33: 75 | T33: 75 | U33: 72.1875 | V33: 72.1875 | W33: 80.3125 | X33: 79.6875 | Y33: 75.83333333 | Z33: 61.04166667 | AA33: =AVERAGE(C33:Z33) -> 88.4
B34: VALORES:
B35: MUY BUENA= 100 BUENA = 75 REGULAR = 50 MALA = 25 MUY MALA = 0
A36: EN TERMINOS GENERALES, LA ATENCIÓN QUE USTED RECIBIO FUE: MUY BUENA _38___ BUENA __18__ REGULAR _1___ MALA ____ MUY MALA ___
A40: RECOMENDARIA A FAMILIARES O AMIGOS EL SERVICIO EN ESTA INSTITUCIÓN? DEFINITIVAMENTE SI _35___ PROBABLEMENTE SI _19__ DEFINITIVAMENTE NO ____ PROBABLEMENTE NO ____ NO RESPONDE __7__

Sheet FAMILIARES
A1: SEGUIMIENTO A ACOMPAÑANTES
A3: SE REALIZA SEGUIMIENTO A OCHO ACOMPAÑANTES DE PACIENTES, UNO EN EL SERVICIO DE URGENCIAS Y SIETE EN SERVICIO DE HOSPITALIZACION.
A4: SE ENCUENTRAN EN CONDICIONES ADECUADAS, CUENTAN CON POSIBILIDAD DE REALIZAR EL ACOMPAÑAMIENTO TURNANDOSE CON OTROS MIEMBROS DE LA FAMILIA.
A5: CONOCEN Y SIGUEN ADECUADAMENTE LAS RECOMENDACIONES DEL PERSONAL INSTITUCIONAL Y SIGUEN LAS INSTRUCCIONES IMPARTIDAS FRENTE AL ACOMPAÑAMIENTO A LOS PACIENTES.
